{"text_format":"1","workbook":"xlsx","n_sheets":14,"sheets":["Cover","Info","Results","E01","E02","E03","E04","E05","E06","E07","E08","E09","E10","About"],"not_rendered":{"charts":12,"images":40,"macros":1,"external_links":0,"defined_names":15,"comments":0,"pivot_tables":0},"unopened":[],"bounds":{"document_bytes":16777216,"sheet_cells":100000,"rows_first":2000,"rows_last":500,"rows_between":2000,"halvings":0,"cell_chars":16384,"cell_head_chars":4096},"cells_cut":0,"cells_raw":0,"read":"whole","date_system":"1900"}

{"sheet":"Cover","index":0,"n_rows":0,"n_cols":0,"rows_kept":0,"cut":false,"hidden":false,"merged":[]}

{"sheet":"Info","index":1,"n_rows":39,"n_cols":4,"rows_kept":39,"cut":false,"hidden":false,"merged":[[38,1,38,3],[39,1,39,3],[2,1,2,2],[3,1,3,2],[4,1,4,2],[5,1,5,2],[6,1,6,2],[37,1,37,3],[31,1,31,2],[32,1,32,2],[33,1,33,2],[34,1,34,2],[35,1,35,2]]}
[]
[]
[null,"Avaliação",null,"Resposta"]
[null,"Nome da cidade:"]
[null,"Tipo de cidade (município, áreas metropolitanas, etc.):"]
[null,"País:"]
[null,"Data de avaliação:"]
[]
[null,"Perfil de cidade (necessário)","Resposta","Data da fonte"]
[null,"Título do mais alto nível de autoridade (por exemplo, prefeito, etc):"]
[null,"População total:   "]
[null,"Quilómetros quadrados :"]
[null,"Densidade populacional (por quilómetros quadrados): "]
[null,"População jovem (15-24) (%):"]
[null,"População idosa (65+) (%):"]
[null,"Género (agregados chefiados por mulheres):"]
[null,"Taxa de Alfabetização (% da população alfabetizada):"]
[null,"Taxa de pobreza (% da população que não está na pobreza):"]
[null,"Rendimento médio do agregado (DEU)"]
[null,"Cidadãos não residentes (%):"]
[null,"Risco de Catástrofe mais prováveis: "]
[null,"Catástrofes mais graves (conhecidas): "]
[]
[null,"Perfil da cidade (opcional)","Resposta","Data da fonte"]
[null,"Número total de agregados: "]
[null,"Pessoa por unidade:"]
[null,"Custo de vida (DEU):"]
[null,"Produto Interno Bruto do País por capital (DEU)"]
[null,"Coeficiente de Gini:"]
[null,"Produto da cidade por capital (DEU):"]
[]
[null,"Equipa do Governo Local para Resiliência e Redução de Riscos de Catástrofes",null,"Resposta"]
[null,"Nome da pessoa que lidera / coordena a conclusão de avaliação da Ferramenta de Auto-Avaliação:"]
[null,"Organização: "]
[null,"Detalhes de contato:"]
[null,"Vontade de partilhar os resultados ou ser usado como um exemplo / caso de estudo por UNISDR e sócios:"]
[]
[null,"Informação dos atores"]
[null,"Por favor, liste todos os atores que apoiaram esta avaliação abaixo."]

{"sheet":"Results","index":2,"n_rows":357,"n_cols":13,"rows_kept":357,"cut":false,"hidden":false,"merged":[[211,2,211,5],[194,2,194,5],[195,2,195,5],[202,2,202,5],[203,2,203,5],[210,2,210,5],[177,2,177,5],[178,2,178,5],[179,2,179,5],[188,2,188,5],[189,2,189,5],[180,2,180,5],[181,2,181,5],[182,2,182,5],[172,2,172,5],[173,2,173,5],[174,2,174,5],[175,2,175,5],[176,2,176,5],[167,2,167,5],[168,2,168,5],[169,2,169,5],[170,2,170,5],[171,2,171,5],[162,2,162,5],[163,2,163,5],[164,2,164,5],[165,2,165,5],[166,2,166,5],[157,2,157,5],[158,2,158,5],[159,2,159,5],[160,2,160,5],[161,2,161,5],[156,2,156,5],[128,2,128,5],[137,2,137,5],[138,2,138,5],[139,2,139,5],[140,2,140,5],[153,2,153,5],[136,2,136,5],[131,1,131,6],[133,2,133,5],[134,2,134,5],[135,2,135,5],[102,2,102,5],[103,2,103,5],[104,2,104,5],[122,2,122,5],[123,2,123,5],[73,2,73,5],[74,2,74,5],[75,2,75,5],[86,2,86,5],[87,2,87,5],[89,2,89,5],[90,2,90,5],[91,2,91,5],[118,2,118,5],[114,1,114,6],[116,2,116,5],[117,2,117,5],[119,2,119,5],[120,2,120,5],[121,2,121,5],[42,2,42,5],[54,2,54,5],[70,2,70,5],[71,2,71,5],[72,2,72,5],[37,2,37,5],[38,2,38,5],[39,2,39,5],[40,2,40,5],[41,2,41,5],[34,2,34,5],[35,2,35,5],[36,2,36,5],[150,2,150,5],[151,2,151,5],[152,2,152,5],[49,2,49,5],[50,2,50,5],[51,2,51,5],[52,2,52,5],[53,2,53,5],[66,2,66,5],[67,2,67,5],[68,2,68,5],[69,2,69,5],[101,2,101,5],[97,1,97,6],[82,2,82,5],[83,2,83,5],[84,2,84,5],[85,2,85,5],[99,2,99,5],[100,2,100,5],[88,2,88,5],[124,2,124,5],[125,2,125,5],[126,2,126,5],[127,2,127,5],[223,1,223,3],[185,1,185,6],[187,2,187,5],[196,2,196,5],[197,2,197,5],[198,2,198,5],[199,2,199,5],[200,2,200,5],[201,2,201,5],[206,1,206,6],[208,2,208,5],[209,2,209,5],[190,2,190,5],[191,2,191,5],[192,2,192,5],[193,2,193,5],[141,2,141,5],[142,2,142,5],[154,2,154,5],[155,2,155,5]]}
[]
[]
[]
[]
[]
[]
[]
[]
[]
[]
[]
[]
[]
[]
[]
[]
[]
[]
[]
[]
[]
[]
[]
[]
[]
[]
[]
[]
[]
[]
[]
[]
[null,"Aspeto Essencial 1: Organizar para Resiliência"]
[]
[null,{"$f":"C240","v":"1.1.1"},{"$f":"E240","v":"Consideração de Riscos na Realização dos Planos"},null,null,null,{"$f":"F240","v":0}]
[null,"1.1.2",{"$f":"E241","v":"Concertação na Realização dos Planos"},null,null,null,0]
[null,"1.1.3","Revisão dos planos estratégicos",null,null,null,0]
[null,"1.2.1",{"$f":"E243","v":"Preparação e planeamento pré-evento"},null,null,null,0]
[null,"1.2.2",{"$f":"E244","v":"Coordenação da resposta à evento"},null,null,null,0]
[null,"1.2.3",{"$f":"E245","v":"Recursos da cidade para gestão da organização, coordenação e participação."},null,null,null,0]
[null,"1.2.4",{"$f":"E246","v":"Identificação das contribuições físicas"},null,null,null,0]
[null,"1.3.1",{"$f":"E247","v":"Integração da resiliência a desastres com outras iniciativas"},null,null,null,0]
[null,{"$f":"C248","v":"1.4.1"},{"$f":"E248","v":"Medida em que os dados na posição da resiliência da cidade está partilhada com outras organizações envolvidas com a resiliência da cidade."},null,null,null,{"$f":"F248","v":0}]
[]
[]
[]
[]
[null,"Aspeto Essencial 02: Identificar, Compreender e utilizar os Cenários de Atual e Futuro Risco "]
[]
[null,{"$f":"C249","v":"2.1.1"},{"$f":"E249","v":"Conhecimento dos perigos (também chamado de perigos, ou estresse e choques) que a cidade enfrenta e sua probabilidade."},null,null,null,{"$f":"F249","v":0}]
[null,{"$f":"C250","v":"2.2.1"},{"$f":"E250","v":"Conhecimento da exposição e vulnerabilidade"},null,null,null,{"$f":"F250","v":0}]
[null,"2.2.2","Estimativa das perdas e danos",null,null,null,0]
[null,"2.3.1","Compreensão dos ativos críticos e as ligações entre eles.",null,null,null,0]
[null,"2.4.1","Mapa de perigos",null,null,null,0]
[null,"2.5.1",{"$f":"E254","v":"Processo de atualização"},null,null,null,0]
[]
[]
[]
[]
[]
[]
[]
[]
[]
[null,"Aspeto Essencial 03: Fortalecer a Capacidade Financeira para a Resiliência"]
[]
[null,{"$f":"C255","v":"3.1.1"},{"$f":"E255","v":"Sensibilização e conhecimento de todos os métodos possíveis de financiamento e fundos, conforme exigido. Conforme necessário, a cidade está ativamente procurando financiamento e fundo, conforme exigido."},null,null,null,{"$f":"F255","v":0}]
[null,{"$f":"C256","v":"3.2.1"},{"$f":"E256","v":"Adequação do planeamento financeiro para todas as ações necessárias para resiliência a Desastres."},null,null,null,{"$f":"F256","v":0}]
[null,"3.2.2","Financiamento de capital para engenharia de longo prazo e outros trabalhos que incluem cenários e ativos críticos identificados nos Aspectos Essenciais 2 e",null,null,null,0]
[null,"3.2.3","Financiamento de operação para atender todos os custos de operação das atividades da resiliência a desastres",null,null,null,0]
[null,"3.2.4","Fundo (s) de contingência para recuperação pós-desastre (pode ser referido como um “fundo de emergência”)",null,null,null,0]
[null,"3.3.1","Cobertura de seguro domestico",null,null,null,0]
[null,{"$f":"C261","v":"3.3.2"},"Cobertura de seguro externo",null,null,null,0]
[null,{"$f":"C262","v":"3.4.1"},"Incentivos para organizações comerciais para melhorar resiliência a desastres – planos de desastre, premissas etc",null,null,null,0]
[null,{"$f":"C263","v":"3.4.2"},"Incentivos para organizações sem fins lucrativos pra melhorar resiliência a desastres – planos de desastre, premissas etc",null,null,null,0]
[null,{"$f":"C264","v":"3.4.3"},"Incentivos para proprietários de casas para melhorar resiliência a desastres – planos de desastre, premissas etc",null,null,null,0]
[]
[]
[]
[]
[null,"Aspeto Essencial 04: Prosseguir com o Desenvolvimento Urbano Resiliente"]
[]
[null,{"$f":"C265","v":"4.1.1"},{"$f":"E265","v":"Deslocamento potencial da população"},null,null,null,{"$f":"F265","v":0}]
[null,"4.1.2","Actividade económica em risco.",null,null,null,0]
[null,"4.1.2.1","Actividade económica em risco.",null,null,null,0]
[null,"4.1.3","Terras agrícolas em risco",null,null,null,0]
[null,"4.2.1","Novo desenvolvimento urbano",null,null,null,0]
[null,"4.3.1","Existência dos códigos de construção projetados para fazer face aos riscos identificados no Aspeto Essencial 2.",null,null,null,0]
[null,"4.3.2","Atualizações dos códigos de construção",null,null,null,0]
[null,"4.3.3","Padrões sustentáveis do projeto de construção",null,null,null,0]
[null,"4.4.1","Aplicação de zoneamento de uso de terra",null,null,null,0]
[null,"4.4.2","Aplicação dos códigos de construção",null,null,null,0]
[]
[]
[]
[]
[]
[null,"Aspeto Essencial 05: Salvaguardar Zonas Tampão Naturais para Aumentar as funções de protecção Oferecidas por Ecossistemas Naturais "]
[]
[null,{"$f":"C275","v":"5.1.1"},{"$f":"E275","v":"Sensibilização sobre a função que os serviços do ecossistema podem desenpenhar na resiliência a desastres"},null,null,null,{"$f":"F275","v":0}]
[null,{"$f":"C276","v":"5.1.2"},{"$f":"E276","v":"Saúde do ecossistema"},null,null,null,{"$f":"F276","v":0}]
[null,"5.2.1","Impacto de uso de terra e outras políticas nos serviços de ecossistema",null,null,null,0]
[null,"5.2.2",{"$f":"E278","v":"Infraestrutura verde e azul está regularmente inserido dentro dos projetos da cidade"},null,null,null,0]
[null,"5.3.1","Identificação dos ativos críticos ambientais",null,null,null,0]
[null,"5.3.2","Acordos transfronteiriços",null,null,null,0]
[]
[]
[]
[]
[]
[]
[]
[]
[]
[null,"Aspeto Essencial 06: Fortalecer a Capacidade Institucional para Resiliência"]
[]
[null,{"$f":"C281","v":"6.1.1"},{"$f":"E281","v":"Disponibilidade das competências e experiência na resiliência a desastres – identificação, mitigação, planeamento, resposta e resposta pós-vento dos riscos."},null,null,null,{"$f":"F281","v":0}]
[null,{"$f":"C282","v":"6.1.2"},{"$f":"E282","v":"Ligações com o setor privado"},null,null,null,{"$f":"F282","v":0}]
[null,"6.1.3","Envolvimento do sector de seguros",null,null,null,0]
[null,"6.1.4","Ligações com a sociedade civil",null,null,null,0]
[null,"6.2.1","Exposição dos materiais/transmissão de mensagens para educação e sensibilização pública.",null,null,null,0]
[null,"6.2.1.1","Exposição dos materiais/transmissão de mensagens para educação e sensibilização pública.",null,null,null,0]
[null,"6.3.1",{"$f":"E287","v":"Medida em que os dados na posição da resiliência da cidade está partilhada com outras organizações envolvidas com a resiliência da cidade."},null,null,null,0]
[null,"6.3.2","Medida em que os dados na posição da resiliência da cidade está partilhada com a organização pública e comunitária.",null,null,null,0]
[null,"6.4.1","Disponibilidade, participação na formação focada em resiliência e risco (Formação Profissional).",null,null,null,0]
[null,"6.4.1.1","Disponibilidade, participação na formação focada em resiliência e risco (Formação Profissional).",null,null,null,0]
[null,"6.4.2","Sistema / processo para atualização de formação relevante",null,null,null,0]
[null,"6.5.1",{"$f":"E292","v":"Acessibilidade da educação e formação para todos os grupos linguísticos na cidade"},null,null,null,0]
[null,"6.6.1","Esforço levado para aprender com o que outras cidades, estados e países (e empresas) fazem para aumentar a resiliência.",null,null,null,0]
[]
[]
[null,"Aspeto Essencial 07:  Compreender e Fortalecer a Capacidade Social para Resiliência"]
[]
[null,{"$f":"C294","v":"7.1.1"},{"$f":"E294","v":"Cobertura da (s) organização (ões) comunitária (s) ou de base em toda a cidade"},null,null,null,{"$f":"F294","v":0}]
[null,{"$f":"C295","v":"7.1.2"},{"$f":"E295","v":"Eficácia da rede comunitária"},null,null,null,{"$f":"F295","v":0}]
[null,"7.1.2.1","Eficácia da rede comunitária",null,null,null,0]
[null,"7.2.1","Conexão social e coesão do bairro",null,null,null,0]
[null,"7.2.2",{"$f":"E298","v":"Envolvimento dos grupos vulneráveis ​​da população"},null,null,null,0]
[null,"7.3.1","A forma como empregadores atuam como um canal com empregado.",null,null,null,0]
[null,"7.3.2","Plano de continuidade de negócios",null,null,null,0]
[null,"7.4.1","Frequência do envolvimento",null,null,null,0]
[null,"7.4.2","Uso dos “sistemas de envolvimento” móvel e e-mail para permitir que os cidadãos dão e recebam atualizações antes e após um desastre.",null,null,null,0]
[null,"7.4.3","Validação da eficácia da educação.",null,null,null,0]
[]
[]
[]
[]
[]
[null,"Aspeto Essencial 08: Aumentar a Resiliência da Infraestrutura"]
[]
[null,{"$f":"C304","v":"8.1.1"},{"$f":"E304","v":"Adequação da infraestrutura de proteção (ecossistema podem oferecer Zonas Tampão naturais - ver Aspeto Essencial 5)."},null,null,null,{"$f":"F304","v":0}]
[null,"8.1.2",{"$f":"E305","v":"Eficácia da manutenção"},null,null,null,{"$f":"F305","v":0}]
[null,"8.2.1","Dias de atendimento ao cliente em risco de perda",null,null,null,0]
[null,"8.2.2","Dias de serviço designado aos ativos críticos (por exemplo: serviço para hospitais ou outros ativos críticos) em risco de perda devido a falha de fornecimento da água ou saneamento",null,null,null,0]
[null,"8.2.3",{"$f":"E308","v":"Custo de restauração de serviço"},null,null,null,0]
[null,"8.3.1","Dias de atendimento ao cliente em risco de perda",null,null,null,0]
[null,"8.3.2","Dias de serviço designado aos ativos críticos em risco de perda devido a insuficiência energética.",null,null,null,0]
[null,"8.3.3","Custo de restauração.",null,null,null,0]
[null,"8.4.1","Segurança e integridade do sistema de gás (se for aplicável)",null,null,null,{"$f":"IF(I312=TRUE,0,F312)","v":0}]
[null,"8.4.2","Dias de atendimento ao cliente em risco de perda",null,null,null,{"$f":"IF(I313=TRUE,0,F313)","v":0}]
[null,"8.4.3","Dias de serviço designado aos ativos críticos em risco de perda devido a falha do fornecimento de gás.",null,null,null,0]
[null,"8.4.4","Custo de restauração de serviço",null,null,null,0]
[null,"8.5.1","Estrada - sistemas de serviço rodoviário em risco de perda.",null,null,null,0]
[null,"8.5.2","Estrada - sobrevivência das rotas críticas de acesso e evacuação.",null,null,null,0]
[null,"8.5.3","Ferrovia/metrô (se for aplicável) – serviço do sistema ferroviário em risco de perda",null,null,null,{"$f":"IF(I318=TRUE,0,F318)","v":0}]
[null,"8.5.4","Ar (se for aplicável)",null,null,null,{"$f":"IF(I319=TRUE,0,F319)","v":0}]
[null,"8.5.5","Rio / Mar (se for aplicável)",null,null,null,0]
[null,"8.5.6","Outro transporte público (se for aplicável).",null,null,null,0]
[null,"8.5.7","Custo de restauração de serviço (todas as rotas de transporte)",null,null,null,0]
[null,"8.6.1","Dias de serviço em risco de perda",null,null,null,0]
[null,"8.6.2","Dias de serviço designado aos ativos críticos em risco de perda devido a falha as comunicações.",null,null,null,0]
[null,"8.6.3","Custo de restauração.",null,null,null,0]
[null,"8.7.1","Segurança estrutural das instalações de emergência e cuidados de saúde e resiliência a desastres (pessoal / socorristas - ver Aspeto Essencial 9).",null,null,null,0]
[null,"8.7.1.1","Segurança estrutural das instalações de emergência e cuidados de saúde e resiliência a desastres (pessoal / socorristas - ver Aspeto Essencial 9).",null,null,null,0]
[null,"8.7.2","Registros e dados de saúde",null,null,null,0]
[null,"8.7.3","Disponibilidade dos cuidados de saúde de emergência, incluindo instalações e suprimentos médicos de urgência para necessidades agudas",null,null,null,0]
[null,"8.8.1","Segurança estrutural das instalações educativas",null,null,null,0]
[null,"8.8.2","Perda do horário de ensino",null,null,null,0]
[null,"8.8.3","Dados de educação",null,null,null,0]
[null,"8.9.1","Resiliência a desastres do sistema prisional",null,null,null,0]
[null,"8.10.1",{"$f":"E334","v":"Garantia de continuidade de todas as funções críticas de administração."},null,null,null,0]
[null,"8.11.1","Garantia de continuidade dos sistemas críticos de dados computador para continuidade do governo.",null,null,null,0]
[null,"8.11.2","Garantia de continuidade dos sistemas informáticos e dados críticos para qualquer uma das infraestruturas acima.",null,null,null,0]
[]
[]
[null,"Aspeto Essencial 09: Garantir a Preparação e a  Resposta Eficaz a Catástrofes"]
[]
[null,{"$f":"C337","v":"9.1.1"},{"$f":"E337","v":"Existência e eficácia dos sistemas de alerta precoce."},null,null,null,{"$f":"F337","v":0}]
[null,{"$f":"C338","v":"9.1.1.1"},{"$f":"E338","v":"Alcance de alerta."},null,null,null,{"$f":"F338","v":0}]
[null,"9.2.1","Existência dos planos de resposta à emergência que integram organizações comunitárias e socorristas profissionais (para resposta pós-evento - Aspeto Essencial 10).",null,null,null,0]
[null,"9.3.1","Capacidade de “intervenção” da polícia também para apoiar as tarefas dos socorristas.",null,null,null,0]
[null,"9.3.2","Definição da disponibilidade e outras necessidades do pessoal e outras dos socorristas.",null,null,null,0]
[null,"9.4.1","Definição da disponibilidade do equipamento e necessidades de fornecimento do equipamento",null,null,null,0]
[null,"9.4.1.1","Definição da disponibilidade do equipamento e necessidades de fornecimento do equipamento",null,null,null,0]
[null,"9.5.1","Possível capacidade de continuar sustentar a população.",null,null,null,0]
[null,"9.5.2","Possível capacidade para atender as necessidades de abrigo / lugares seguros.",null,null,null,0]
[null,"9.5.2.1",{"$f":"E346","v":"Possível capacidade para atender as necessidades de abrigo / lugares seguros."},null,null,null,0]
[null,"9.5.3",{"$f":"E347","v":"Capacidade para atender possíveis necessidades dos bens básicos."},null,null,null,0]
[null,"9.5.4","Possível disponibilidade de combustível",null,null,null,0]
[null,"9.6.1","Interoperabilidade com as cidades/estados vizinhos e outros níveis de procedimentos e sistemas críticos do governo.",null,null,null,0]
[null,"9.6.2","Centro de Operações de Emergência.",null,null,null,0]
[null,"9.6.3","Coordenação da recuperação pós-evento.",null,null,null,0]
[null,"9.7.1",{"$f":"E352","v":"Práticas e ensaios - envolvendo quer o público quer os profissionais."},null,null,null,0]
[null,{"$f":"C353","v":"9.7.2"},"Eficácia da formação e simulações.",null,null,null,0]
[]
[]
[null,"Aspeto Essencial 10: Acelerar a Recuperação e Reconstruir Melhor"]
[]
[null,{"$f":"C354","v":"10.1.1"},{"$f":"E354","v":"Planeamento para recuperação pós-evento e reinicialização económica."},null,null,null,{"$f":"F354","v":0}]
[null,{"$f":"C355","v":"10.1.2"},{"$f":"E355","v":"Medida em que houve concertação dos atores em torno dos planos da \"reinicialização e recuperação dos eventos\""},null,null,null,{"$f":"F355","v":0}]
[null,"10.1.3",{"$f":"E356","v":"Acordos financeiros paralelos para processar ajuda recebida e desembolsar os fundos"},null,null,null,0]
[null,"10.2.1","Ciclos de aprendizagem",null,null,null,0]
[]
[]
[]
[]
[]
[]
[]
[]
[]
[]
[]
[null,{"$f":"TODAY()","v":"2019-12-23"}]
[]
[]
[null,null,"Etiqueta","Nome",null,"Essencial","Pontuação Total","Pontuação Máxima","Etiqueta"]
[null,null,"S1","1.   Organizar-se para  a Resiliencia a Desastres",null,"E1",{"$f":"SUMIFS($F$240:$F$1219,$B$240:$B$1219,F228)","v":0},{"$f":"COUNTIFS($B$240:$B$357,F228)*5","v":45},"01",null,{"$f":"SUM(G228:G237)","v":0},{"$f":"K228/K229","v":0},{"$f":"CONCATENATE(\"The overall score for this assessment is \",SUM(G228:G237),\" / \",SUM(H228:H237))","v":"The overall score for this assessment is 0 / 590"}]
[null,null,"S2","2.   Identificar, Compreender e Usar Cenários de Riscos Atuais e Futuros",null,"E2",0,30,"02",null,{"$f":"SUM(H228:H237)","v":590},{"$f":"1-L228","v":1}]
[null,null,"S3","3.   Fortalecer a Capacidade Financeira para a Resiliência",null,"E3",0,50,"03"]
[null,null,"S4","4.   Prosseguir com o Desenho e Desenvolvimento Urbanos Resilientes",null,"E4",0,50,"04"]
[null,null,"S5","5.   Proteger as Zonas Tampões Naturais para Melhorar as Funções Protetoras Oferecidas pelos Ecossistemas Naturais",null,"E5",0,30,"05"]
[null,null,"S6","6.   Fortalecer a Capacidade Institucional para a Resiliência",null,"E6",0,65,"06"]
[null,null,"S7","7.   Compreender e Fortalecer a Capacidade Social para a Resiliência",null,"E7",0,50,"07"]
[null,null,"S8","8.   Aumentar a Resiliência da Infraestrutura",null,"E8",{"$f":"SUMIFS($F$240:$F$1219,$B$240:$B$1219,F235)-SUMIFS($F$240:$F$1219,$B$240:$B$1219,F235,$I$240:$I$1219,TRUE)","v":0},{"$f":"(COUNTIFS($B$240:$B$357,F235)-COUNTIFS(I312:I321,TRUE))*5","v":165},"08","Observação: Esta linha tem diferentes fórmulas para descontar as perguntas que são N / A"]
[null,null,"S9","9.   Garantir a  Preparacao e  Resposta  Eficazes a Desastres",null,"E9",0,85,"09"]
[null,null,"S10","10. Acelerar a Recuperação e Reconstruir Melhor",null,"E10",0,20,"10"]
[]
[null,"Seção","Referência",null,"Pergunta","Pontuação Selecionada","Esta Pontuação"]
[null,"E1","1.1.1",null,"Consideração de Riscos na Realização dos Planos",{"$f":"IF(G240=\"\",0,IF(G240=0,0,6-G240))","v":0},{"$f":"OFFSET('E01'!$E$1,MATCH(C240,'E01'!G:G,0)+3,0)","v":0}]
[null,"E1","1.1.2",null,"Concertação na Realização dos Planos",{"$f":"IF(G241=\"\",0,IF(G241=0,0,6-G241))","v":0},{"$f":"OFFSET('E01'!$E$1,MATCH(C241,'E01'!G:G,0)+3,0)","v":0}]
[null,"E1","1.1.3",null,"Revisão dos planos estratégicos",0,{"$f":"OFFSET('E01'!$E$1,MATCH(C242,'E01'!G:G,0)+3,0)","v":0}]
[null,"E1","1.2.1",null,"Preparação e planeamento pré-evento",0,{"$f":"OFFSET('E01'!$E$1,MATCH(C243,'E01'!G:G,0)+3,0)","v":0}]
[null,"E1","1.2.2",null,"Coordenação da resposta à evento",0,{"$f":"OFFSET('E01'!$E$1,MATCH(C244,'E01'!G:G,0)+3,0)","v":0}]
[null,"E1","1.2.3",null,"Recursos da cidade para gestão da organização, coordenação e participação.",0,{"$f":"OFFSET('E01'!$E$1,MATCH(C245,'E01'!G:G,0)+3,0)","v":0}]
[null,"E1","1.2.4",null,"Identificação das contribuições físicas",0,{"$f":"OFFSET('E01'!$E$1,MATCH(C246,'E01'!G:G,0)+3,0)","v":0}]
[null,"E1","1.3.1",null,"Integração da resiliência a desastres com outras iniciativas",0,{"$f":"OFFSET('E01'!$E$1,MATCH(C247,'E01'!G:G,0)+3,0)","v":0}]
[null,"E1","1.4.1",null,"Medida em que os dados na posição da resiliência da cidade está partilhada com outras organizações envolvidas com a resiliência da cidade.",0,{"$f":"OFFSET('E01'!$E$1,MATCH(C248,'E01'!G:G,0)+3,0)","v":0}]
[null,"E2","2.1.1",null,"Conhecimento dos perigos (também chamado de perigos, ou estresse e choques) que a cidade enfrenta e sua probabilidade.",0,{"$f":"OFFSET('E02'!$E$1,MATCH(C249,'E02'!G:G,0)+3,0)","v":0}]
[null,"E2","2.2.1",null,"Conhecimento da exposição e vulnerabilidade",0,{"$f":"OFFSET('E02'!$E$1,MATCH(C250,'E02'!G:G,0)+3,0)","v":0}]
[null,"E2","2.2.2",null,"Estimativa das perdas e danos",0,{"$f":"OFFSET('E02'!$E$1,MATCH(C251,'E02'!G:G,0)+3,0)","v":0}]
[null,"E2","2.3.1",null,"Compreensão dos ativos críticos e as ligações entre eles.",0,{"$f":"OFFSET('E02'!$E$1,MATCH(C252,'E02'!G:G,0)+3,0)","v":0}]
[null,"E2","2.4.1",null,"Mapa de perigos",0,{"$f":"OFFSET('E02'!$E$1,MATCH(C253,'E02'!G:G,0)+3,0)","v":0}]
[null,"E2","2.5.1",null,"Processo de atualização",0,{"$f":"OFFSET('E02'!$E$1,MATCH(C254,'E02'!G:G,0)+3,0)","v":0}]
[null,"E3","3.1.1",null,"Sensibilização e conhecimento de todos os métodos possíveis de financiamento e fundos, conforme exigido. Conforme necessário, a cidade está ativamente procurando financiamento e fundo, conforme exigido.",0,{"$f":"OFFSET('E03'!$E$1,MATCH(C255,'E03'!G:G,0)+3,0)","v":0}]
[null,"E3","3.2.1",null,"Adequação do planeamento financeiro para todas as ações necessárias para resiliência a Desastres.",0,{"$f":"OFFSET('E03'!$E$1,MATCH(C256,'E03'!G:G,0)+3,0)","v":0}]
[null,"E3","3.2.2",null,"Financiamento de capital para engenharia de longo prazo e outros trabalhos que incluem cenários e ativos críticos identificados nos Aspectos Essenciais 2 e",0,{"$f":"OFFSET('E03'!$E$1,MATCH(C257,'E03'!G:G,0)+3,0)","v":0}]
[null,"E3","3.2.3",null,"Financiamento de operação para atender todos os custos de operação das atividades da resiliência a desastres",0,{"$f":"OFFSET('E03'!$E$1,MATCH(C258,'E03'!G:G,0)+3,0)","v":0}]
[null,"E3","3.2.4",null,"Fundo (s) de contingência para recuperação pós-desastre (pode ser referido como um “fundo de emergência”)",0,{"$f":"OFFSET('E03'!$E$1,MATCH(C259,'E03'!G:G,0)+3,0)","v":0}]
[null,"E3","3.3.1",null,"Cobertura de seguro domestico",0,{"$f":"OFFSET('E03'!$E$1,MATCH(C260,'E03'!G:G,0)+3,0)","v":0}]
[null,"E3","3.3.2",null,"Cobertura de seguro externo",0,{"$f":"OFFSET('E03'!$E$1,MATCH(C261,'E03'!G:G,0)+3,0)","v":0}]
[null,"E3","3.4.1",null,"Incentivos para organizações comerciais para melhorar resiliência a desastres – planos de desastre, premissas etc",0,{"$f":"OFFSET('E03'!$E$1,MATCH(C262,'E03'!G:G,0)+3,0)","v":0}]
[null,"E3","3.4.2",null,"Incentivos para organizações sem fins lucrativos pra melhorar resiliência a desastres – planos de desastre, premissas etc",0,{"$f":"OFFSET('E03'!$E$1,MATCH(C263,'E03'!G:G,0)+3,0)","v":0}]
[null,"E3","3.4.3",null,"Incentivos para proprietários de casas para melhorar resiliência a desastres – planos de desastre, premissas etc",0,{"$f":"OFFSET('E03'!$E$1,MATCH(C264,'E03'!G:G,0)+3,0)","v":0}]
[null,"E4","4.1.1",null,"Deslocamento potencial da população",0,{"$f":"OFFSET('E04'!$E$1,MATCH(C265,'E04'!G:G,0)+3,0)","v":0}]
[null,"E4","4.1.2",null,"Actividade económica em risco.",0,{"$f":"OFFSET('E04'!$E$1,MATCH(C266,'E04'!G:G,0)+3,0)","v":0}]
[null,"E4","4.1.2.1",null,"Actividade económica em risco.",0,{"$f":"OFFSET('E04'!$E$1,MATCH(C267,'E04'!G:G,0)+3,0)","v":0}]
[null,"E4","4.1.3",null,"Terras agrícolas em risco",0,{"$f":"OFFSET('E04'!$E$1,MATCH(C268,'E04'!G:G,0)+3,0)","v":0}]
[null,"E4","4.2.1",null,"Novo desenvolvimento urbano",0,{"$f":"OFFSET('E04'!$E$1,MATCH(C269,'E04'!G:G,0)+3,0)","v":0}]
[null,"E4","4.3.1",null,"Existência dos códigos de construção projetados para fazer face aos riscos identificados no Aspeto Essencial 2.",0,{"$f":"OFFSET('E04'!$E$1,MATCH(C270,'E04'!G:G,0)+3,0)","v":0}]
[null,"E4","4.3.2",null,"Atualizações dos códigos de construção",0,{"$f":"OFFSET('E04'!$E$1,MATCH(C271,'E04'!G:G,0)+3,0)","v":0}]
[null,"E4","4.3.3",null,"Padrões sustentáveis do projeto de construção",0,{"$f":"OFFSET('E04'!$E$1,MATCH(C272,'E04'!G:G,0)+3,0)","v":0}]
[null,"E4","4.4.1",null,"Aplicação de zoneamento de uso de terra",0,{"$f":"OFFSET('E04'!$E$1,MATCH(C273,'E04'!G:G,0)+3,0)","v":0}]
[null,"E4","4.4.2",null,"Aplicação dos códigos de construção",0,{"$f":"OFFSET('E04'!$E$1,MATCH(C274,'E04'!G:G,0)+3,0)","v":0}]
[null,"E5","5.1.1",null,"Sensibilização sobre a função que os serviços do ecossistema podem desenpenhar na resiliência a desastres",0,{"$f":"OFFSET('E05'!$E$1,MATCH(C275,'E05'!G:G,0)+3,0)","v":0}]
[null,"E5","5.1.2",null,"Saúde do ecossistema",0,{"$f":"OFFSET('E05'!$E$1,MATCH(C276,'E05'!G:G,0)+3,0)","v":0}]
[null,"E5","5.2.1",null,"Impacto de uso de terra e outras políticas nos serviços de ecossistema",0,{"$f":"OFFSET('E05'!$E$1,MATCH(C277,'E05'!G:G,0)+3,0)","v":0}]
[null,"E5","5.2.2",null,"Infraestrutura verde e azul está regularmente inserido dentro dos projetos da cidade",0,{"$f":"OFFSET('E05'!$E$1,MATCH(C278,'E05'!G:G,0)+3,0)","v":0}]
[null,"E5","5.3.1",null,"Identificação dos ativos críticos ambientais",0,{"$f":"OFFSET('E05'!$E$1,MATCH(C279,'E05'!G:G,0)+3,0)","v":0}]
[null,"E5","5.3.2",null,"Acordos transfronteiriços",0,{"$f":"OFFSET('E05'!$E$1,MATCH(C280,'E05'!G:G,0)+3,0)","v":0}]
[null,"E6","6.1.1",null,"Disponibilidade das competências e experiência na resiliência a desastres – identificação, mitigação, planeamento, resposta e resposta pós-vento dos riscos.",0,{"$f":"OFFSET('E06'!$E$1,MATCH(C281,'E06'!G:G,0)+3,0)","v":0}]
[null,"E6","6.1.2",null,"Ligações com o setor privado",0,{"$f":"OFFSET('E06'!$E$1,MATCH(C282,'E06'!G:G,0)+3,0)","v":0}]
[null,"E6","6.1.3",null,"Envolvimento do sector de seguros",0,{"$f":"OFFSET('E06'!$E$1,MATCH(C283,'E06'!G:G,0)+3,0)","v":0}]
[null,"E6","6.1.4",null,"Ligações com a sociedade civil",0,{"$f":"OFFSET('E06'!$E$1,MATCH(C284,'E06'!G:G,0)+3,0)","v":0}]
[null,"E6","6.2.1",null,"Exposição dos materiais/transmissão de mensagens para educação e sensibilização pública.",0,{"$f":"OFFSET('E06'!$E$1,MATCH(C285,'E06'!G:G,0)+3,0)","v":0}]
[null,"E6","6.2.1.1",null,"Exposição dos materiais/transmissão de mensagens para educação e sensibilização pública.",0,{"$f":"OFFSET('E06'!$E$1,MATCH(C286,'E06'!G:G,0)+3,0)","v":0}]
[null,"E6","6.3.1",null,"Medida em que os dados na posição da resiliência da cidade está partilhada com outras organizações envolvidas com a resiliência da cidade.",0,{"$f":"OFFSET('E06'!$E$1,MATCH(C287,'E06'!G:G,0)+3,0)","v":0}]
[null,"E6","6.3.2",null,"Medida em que os dados na posição da resiliência da cidade está partilhada com a organização pública e comunitária.",0,{"$f":"OFFSET('E06'!$E$1,MATCH(C288,'E06'!G:G,0)+3,0)","v":0}]
[null,"E6","6.4.1",null,"Disponibilidade, participação na formação focada em resiliência e risco (Formação Profissional).",0,{"$f":"OFFSET('E06'!$E$1,MATCH(C289,'E06'!G:G,0)+3,0)","v":0}]
[null,"E6","6.4.1.1",null,"Disponibilidade, participação na formação focada em resiliência e risco (Formação Profissional).",0,{"$f":"OFFSET('E06'!$E$1,MATCH(C290,'E06'!G:G,0)+3,0)","v":0}]
[null,"E6","6.4.2",null,"Sistema / processo para atualização de formação relevante",0,{"$f":"OFFSET('E06'!$E$1,MATCH(C291,'E06'!G:G,0)+3,0)","v":0}]
[null,"E6","6.5.1",null,"Acessibilidade da educação e formação para todos os grupos linguísticos na cidade",0,{"$f":"OFFSET('E06'!$E$1,MATCH(C292,'E06'!G:G,0)+3,0)","v":0}]
[null,"E6","6.6.1",null,"Esforço levado para aprender com o que outras cidades, estados e países (e empresas) fazem para aumentar a resiliência.",0,{"$f":"OFFSET('E06'!$E$1,MATCH(C293,'E06'!G:G,0)+3,0)","v":0}]
[null,"E7","7.1.1",null,"Cobertura da (s) organização (ões) comunitária (s) ou de base em toda a cidade",0,{"$f":"OFFSET('E07'!$E$1,MATCH(C294,'E07'!G:G,0)+3,0)","v":0}]
[null,"E7","7.1.2",null,"Eficácia da rede comunitária",0,{"$f":"OFFSET('E07'!$E$1,MATCH(C295,'E07'!G:G,0)+3,0)","v":0}]
[null,"E7","7.1.2.1",null,"Eficácia da rede comunitária",0,{"$f":"OFFSET('E07'!$E$1,MATCH(C296,'E07'!G:G,0)+3,0)","v":0}]
[null,"E7","7.2.1",null,"Conexão social e coesão do bairro",0,{"$f":"OFFSET('E07'!$E$1,MATCH(C297,'E07'!G:G,0)+3,0)","v":0}]
[null,"E7","7.2.2",null,"Envolvimento dos grupos vulneráveis ​​da população",0,{"$f":"OFFSET('E07'!$E$1,MATCH(C298,'E07'!G:G,0)+3,0)","v":0}]
[null,"E7","7.3.1",null,"A forma como empregadores atuam como um canal com empregado.",0,{"$f":"OFFSET('E07'!$E$1,MATCH(C299,'E07'!G:G,0)+3,0)","v":0}]
[null,"E7","7.3.2",null,"Plano de continuidade de negócios",0,{"$f":"OFFSET('E07'!$E$1,MATCH(C300,'E07'!G:G,0)+3,0)","v":0}]
[null,"E7","7.4.1",null,"Frequência do envolvimento",0,{"$f":"OFFSET('E07'!$E$1,MATCH(C301,'E07'!G:G,0)+3,0)","v":0}]
[null,"E7","7.4.2",null,"Uso dos “sistemas de envolvimento” móvel e e-mail para permitir que os cidadãos dão e recebam atualizações antes e após um desastre.",0,{"$f":"OFFSET('E07'!$E$1,MATCH(C302,'E07'!G:G,0)+3,0)","v":0}]
[null,"E7","7.4.3",null,"Validação da eficácia da educação.",0,{"$f":"OFFSET('E07'!$E$1,MATCH(C303,'E07'!G:G,0)+3,0)","v":0}]
[null,"E8","8.1.1",null,"Adequação da infraestrutura de proteção (ecossistema podem oferecer Zonas Tampão naturais - ver Aspeto Essencial 5).",0,{"$f":"OFFSET('E08'!$E$1,MATCH(C304,'E08'!G:G,0)+3,0)","v":0}]
[null,"E8","8.1.2",null,"Eficácia da manutenção",{"$f":"IF(G305=\"\",0,IF(G305=0,0,6-G305))","v":0},{"$f":"OFFSET('E08'!$E$1,MATCH(C305,'E08'!G:G,0)+3,0)","v":0}]
[null,"E8","8.2.1",null,"Dias de atendimento ao cliente em risco de perda",0,{"$f":"OFFSET('E08'!$E$1,MATCH(C306,'E08'!G:G,0)+3,0)","v":0}]
[null,"E8","8.2.2",null,"Dias de serviço designado aos ativos críticos (por exemplo: serviço para hospitais ou outros ativos críticos) em risco de perda devido a falha de fornecimento da água ou saneamento",0,{"$f":"OFFSET('E08'!$E$1,MATCH(C307,'E08'!G:G,0)+3,0)","v":0}]
[null,"E8","8.2.3",null,"Custo de restauração de serviço",0,{"$f":"OFFSET('E08'!$E$1,MATCH(C308,'E08'!G:G,0)+3,0)","v":0}]
[null,"E8","8.3.1",null,"Dias de atendimento ao cliente em risco de perda",0,{"$f":"OFFSET('E08'!$E$1,MATCH(C309,'E08'!G:G,0)+3,0)","v":0}]
[null,"E8","8.3.2",null,"Dias de serviço designado aos ativos críticos em risco de perda devido a insuficiência energética.",0,{"$f":"OFFSET('E08'!$E$1,MATCH(C310,'E08'!G:G,0)+3,0)","v":0}]
[null,"E8","8.3.3",null,"Custo de restauração.",0,{"$f":"OFFSET('E08'!$E$1,MATCH(C311,'E08'!G:G,0)+3,0)","v":0}]
[null,"E8","8.4.1",null,"Segurança e integridade do sistema de gás (se for aplicável)",0,{"$f":"OFFSET('E08'!$E$1,MATCH(C312,'E08'!G:G,0)+3,0)","v":0},"NA?",{"$f":"OFFSET('E08'!$E$1,MATCH(C312,'E08'!G:G,0)-1,0)","v":0}]
[null,"E8","8.4.2",null,"Dias de atendimento ao cliente em risco de perda",0,{"$f":"OFFSET('E08'!$E$1,MATCH(C313,'E08'!G:G,0)+3,0)","v":0},"NA?",{"$f":"OFFSET('E08'!$E$1,MATCH(C313,'E08'!G:G,0)-1,0)","v":0}]
[null,"E8","8.4.3",null,"Dias de serviço designado aos ativos críticos em risco de perda devido a falha do fornecimento de gás.",0,{"$f":"OFFSET('E08'!$E$1,MATCH(C314,'E08'!G:G,0)+3,0)","v":0},"NA?",{"$f":"OFFSET('E08'!$E$1,MATCH(C314,'E08'!G:G,0)-1,0)","v":0}]
[null,"E8","8.4.4",null,"Custo de restauração de serviço",0,{"$f":"OFFSET('E08'!$E$1,MATCH(C315,'E08'!G:G,0)+3,0)","v":0},"NA?",{"$f":"OFFSET('E08'!$E$1,MATCH(C315,'E08'!G:G,0)-1,0)","v":0}]
[null,"E8","8.5.1",null,"Estrada - sistemas de serviço rodoviário em risco de perda.",0,{"$f":"OFFSET('E08'!$E$1,MATCH(C316,'E08'!G:G,0)+3,0)","v":0}]
[null,"E8","8.5.2",null,"Estrada - sobrevivência das rotas críticas de acesso e evacuação.",0,{"$f":"OFFSET('E08'!$E$1,MATCH(C317,'E08'!G:G,0)+3,0)","v":0}]
[null,"E8","8.5.3",null,"Ferrovia/metrô (se for aplicável) – serviço do sistema ferroviário em risco de perda",0,{"$f":"OFFSET('E08'!$E$1,MATCH(C318,'E08'!G:G,0)+3,0)","v":0},"NA?",{"$f":"OFFSET('E08'!$E$1,MATCH(C318,'E08'!G:G,0)-1,0)","v":0}]
[null,"E8","8.5.4",null,"Ar (se for aplicável)",0,{"$f":"OFFSET('E08'!$E$1,MATCH(C319,'E08'!G:G,0)+3,0)","v":0},"NA?",{"$f":"OFFSET('E08'!$E$1,MATCH(C319,'E08'!G:G,0)-1,0)","v":0}]
[null,"E8","8.5.5",null,"Rio / Mar (se for aplicável)",0,{"$f":"OFFSET('E08'!$E$1,MATCH(C320,'E08'!G:G,0)+3,0)","v":0},"NA?",{"$f":"OFFSET('E08'!$E$1,MATCH(C320,'E08'!G:G,0)-1,0)","v":0}]
[null,"E8","8.5.6",null,"Outro transporte público (se for aplicável).",0,{"$f":"OFFSET('E08'!$E$1,MATCH(C321,'E08'!G:G,0)+3,0)","v":0},"NA?",{"$f":"OFFSET('E08'!$E$1,MATCH(C321,'E08'!G:G,0)-1,0)","v":0}]
[null,"E8","8.5.7",null,"Custo de restauração de serviço (todas as rotas de transporte)",0,{"$f":"OFFSET('E08'!$E$1,MATCH(C322,'E08'!G:G,0)+3,0)","v":0}]
[null,"E8","8.6.1",null,"Dias de serviço em risco de perda",0,{"$f":"OFFSET('E08'!$E$1,MATCH(C323,'E08'!G:G,0)+3,0)","v":0}]
[null,"E8","8.6.2",null,"Dias de serviço designado aos ativos críticos em risco de perda devido a falha as comunicações.",0,{"$f":"OFFSET('E08'!$E$1,MATCH(C324,'E08'!G:G,0)+3,0)","v":0}]
[null,"E8","8.6.3",null,"Custo de restauração.",0,{"$f":"OFFSET('E08'!$E$1,MATCH(C325,'E08'!G:G,0)+3,0)","v":0}]
[null,"E8","8.7.1",null,"Segurança estrutural das instalações de emergência e cuidados de saúde e resiliência a desastres (pessoal / socorristas - ver Aspeto Essencial 9).",0,{"$f":"OFFSET('E08'!$E$1,MATCH(C326,'E08'!G:G,0)+3,0)","v":0}]
[null,"E8","8.7.1.1",null,"Segurança estrutural das instalações de emergência e cuidados de saúde e resiliência a desastres (pessoal / socorristas - ver Aspeto Essencial 9).",0,{"$f":"OFFSET('E08'!$E$1,MATCH(C327,'E08'!G:G,0)+3,0)","v":0}]
[null,"E8","8.7.2",null,"Registros e dados de saúde",0,{"$f":"OFFSET('E08'!$E$1,MATCH(C328,'E08'!G:G,0)+3,0)","v":0}]
[null,"E8","8.7.3",null,"Disponibilidade dos cuidados de saúde de emergência, incluindo instalações e suprimentos médicos de urgência para necessidades agudas",0,{"$f":"OFFSET('E08'!$E$1,MATCH(C329,'E08'!G:G,0)+3,0)","v":0}]
[null,"E8","8.8.1",null,"Segurança estrutural das instalações educativas",0,{"$f":"OFFSET('E08'!$E$1,MATCH(C330,'E08'!G:G,0)+3,0)","v":0}]
[null,"E8","8.8.2",null,"Perda do horário de ensino",0,{"$f":"OFFSET('E08'!$E$1,MATCH(C331,'E08'!G:G,0)+3,0)","v":0}]
[null,"E8","8.8.3",null,"Dados de educação",0,{"$f":"OFFSET('E08'!$E$1,MATCH(C332,'E08'!G:G,0)+3,0)","v":0}]
[null,"E8","8.9.1",null,"Resiliência a desastres do sistema prisional",0,{"$f":"OFFSET('E08'!$E$1,MATCH(C333,'E08'!G:G,0)+3,0)","v":0}]
[null,"E8","8.10.1",null,"Garantia de continuidade de todas as funções críticas de administração.",0,{"$f":"OFFSET('E08'!$E$1,MATCH(C334,'E08'!G:G,0)+3,0)","v":0}]
[null,"E8","8.11.1",null,"Garantia de continuidade dos sistemas críticos de dados computador para continuidade do governo.",0,{"$f":"OFFSET('E08'!$E$1,MATCH(C335,'E08'!G:G,0)+3,0)","v":0}]
[null,"E8","8.11.2",null,"Garantia de continuidade dos sistemas informáticos e dados críticos para qualquer uma das infraestruturas acima.",0,{"$f":"OFFSET('E08'!$E$1,MATCH(C336,'E08'!G:G,0)+3,0)","v":0}]
[null,"E9","9.1.1",null,"Existência e eficácia dos sistemas de alerta precoce.",0,{"$f":"OFFSET('E09'!$E$1,MATCH(C337,'E09'!G:G,0)+3,0)","v":0}]
[null,"E9","9.1.1.1",null,"Alcance de alerta.",0,{"$f":"OFFSET('E09'!$E$1,MATCH(C338,'E09'!G:G,0)+3,0)","v":0}]
[null,"E9","9.2.1",null,"Existência dos planos de resposta à emergência que integram organizações comunitárias e socorristas profissionais (para resposta pós-evento - Aspeto Essencial 10).",0,{"$f":"OFFSET('E09'!$E$1,MATCH(C339,'E09'!G:G,0)+3,0)","v":0}]
[null,"E9","9.3.1",null,"Capacidade de “intervenção” da polícia também para apoiar as tarefas dos socorristas.",0,{"$f":"OFFSET('E09'!$E$1,MATCH(C340,'E09'!G:G,0)+3,0)","v":0}]
[null,"E9","9.3.2",null,"Definição da disponibilidade e outras necessidades do pessoal e outras dos socorristas.",0,{"$f":"OFFSET('E09'!$E$1,MATCH(C341,'E09'!G:G,0)+3,0)","v":0}]
[null,"E9","9.4.1",null,"Definição da disponibilidade do equipamento e necessidades de fornecimento do equipamento",0,{"$f":"OFFSET('E09'!$E$1,MATCH(C342,'E09'!G:G,0)+3,0)","v":0}]
[null,"E9","9.4.1.1",null,"Definição da disponibilidade do equipamento e necessidades de fornecimento do equipamento",0,{"$f":"OFFSET('E09'!$E$1,MATCH(C343,'E09'!G:G,0)+3,0)","v":0}]
[null,"E9","9.5.1",null,"Possível capacidade de continuar sustentar a população.",0,{"$f":"OFFSET('E09'!$E$1,MATCH(C344,'E09'!G:G,0)+3,0)","v":0}]
[null,"E9","9.5.2",null,"Possível capacidade para atender as necessidades de abrigo / lugares seguros.",0,{"$f":"OFFSET('E09'!$E$1,MATCH(C345,'E09'!G:G,0)+3,0)","v":0}]
[null,"E9","9.5.2.1",null,"Possível capacidade para atender as necessidades de abrigo / lugares seguros.",0,{"$f":"OFFSET('E09'!$E$1,MATCH(C346,'E09'!G:G,0)+3,0)","v":0}]
[null,"E9","9.5.3",null,"Capacidade para atender possíveis necessidades dos bens básicos.",0,{"$f":"OFFSET('E09'!$E$1,MATCH(C347,'E09'!G:G,0)+3,0)","v":0}]
[null,"E9","9.5.4",null,"Possível disponibilidade de combustível",0,{"$f":"OFFSET('E09'!$E$1,MATCH(C348,'E09'!G:G,0)+3,0)","v":0}]
[null,"E9","9.6.1",null,"Interoperabilidade com as cidades/estados vizinhos e outros níveis de procedimentos e sistemas críticos do governo.",0,{"$f":"OFFSET('E09'!$E$1,MATCH(C349,'E09'!G:G,0)+3,0)","v":0}]
[null,"E9","9.6.2",null,"Centro de Operações de Emergência.",0,{"$f":"OFFSET('E09'!$E$1,MATCH(C350,'E09'!G:G,0)+3,0)","v":0}]
[null,"E9","9.6.3",null,"Coordenação da recuperação pós-evento.",0,{"$f":"OFFSET('E09'!$E$1,MATCH(C351,'E09'!G:G,0)+3,0)","v":0}]
[null,"E9","9.7.1",null,"Práticas e ensaios - envolvendo quer o público quer os profissionais.",0,{"$f":"OFFSET('E09'!$E$1,MATCH(C352,'E09'!G:G,0)+3,0)","v":0}]
[null,"E9","9.7.2",null,"Eficácia da formação e simulações.",0,{"$f":"OFFSET('E09'!$E$1,MATCH(C353,'E09'!G:G,0)+3,0)","v":0}]
[null,"E10","10.1.1",null,"Planeamento para recuperação pós-evento e reinicialização económica.",0,{"$f":"OFFSET('E10'!$E$1,MATCH(C354,'E10'!G:G,0)+3,0)","v":0}]
[null,"E10","10.1.2",null,"Medida em que houve concertação dos atores em torno dos planos da \"reinicialização e recuperação dos eventos\"",0,{"$f":"OFFSET('E10'!$E$1,MATCH(C355,'E10'!G:G,0)+3,0)","v":0}]
[null,"E10","10.1.3",null,"Acordos financeiros paralelos para processar ajuda recebida e desembolsar os fundos",0,{"$f":"OFFSET('E10'!$E$1,MATCH(C356,'E10'!G:G,0)+3,0)","v":0}]
[null,"E10","10.2.1",null,"Ciclos de aprendizagem",0,{"$f":"OFFSET('E10'!$E$1,MATCH(C357,'E10'!G:G,0)+3,0)","v":0}]

{"sheet":"E01","index":3,"n_rows":125,"n_cols":7,"rows_kept":125,"cut":false,"hidden":false,"merged":[[20,2,20,3],[5,2,5,3],[6,2,6,3],[7,2,7,3],[18,2,18,3],[19,2,19,3],[8,2,13,3],[115,2,115,3],[116,2,116,3],[117,2,117,3],[118,2,123,3],[103,2,108,3],[101,2,101,3],[102,2,102,3],[59,2,59,3],[60,2,60,3],[61,2,61,3],[75,2,80,3],[62,2,67,3],[74,2,74,3],[88,2,93,3],[85,2,85,3],[86,2,86,3],[87,2,87,3],[100,2,100,3],[49,2,54,3],[34,2,39,3],[21,2,26,3],[72,2,72,3],[73,2,73,3],[31,2,31,3],[32,2,32,3],[33,2,33,3],[46,2,46,3],[47,2,47,3],[48,2,48,3]]}
[]
[]
[null,"1.1 - Realização de Planos",null,null,null,null,"1.1"]
[]
[null,"1.1.1 - Consideração dos Riscos na Realização dos Planos",null,null,null,null,"1.1.1"]
[null,"Pergunta","Comentários"]
[]
[null,"Resposta","Fornecer meios de verificação (explicação e evidência)"]
[null,null,null,null,null,{"$f":"IF(E9=1,TRUE,FALSE)","v":false}]
[null,null,null,null,null,{"$f":"IF(E9=2,TRUE,FALSE)","v":false}]
[null,null,null,null,null,{"$f":"IF(E9=3,TRUE,FALSE)","v":false}]
[null,null,null,null,null,{"$f":"IF(E9=4,TRUE,FALSE)","v":false}]
[null,null,null,null,null,{"$f":"IF(E9=5,TRUE,FALSE)","v":false}]
[null,null,null,null,null,{"$f":"IF(E9=6,TRUE,FALSE)","v":false}]
[null,"Ações para alcançar a máxima resiliência","Instituição responsável","Prazo"]
[]
[]
[null,"1.1.2 - Concertação na Realização dos Planos",null,null,null,null,"1.1.2"]
[null,"Pergunta","Comentários"]
[]
[null,"Resposta","Fornecer meios de verificação (explicação e evidência)"]
[null,null,null,null,null,{"$f":"IF(E22=1,TRUE,FALSE)","v":false}]
[null,null,null,null,null,{"$f":"IF(E22=2,TRUE,FALSE)","v":false}]
[null,null,null,null,null,{"$f":"IF(E22=3,TRUE,FALSE)","v":false}]
[null,null,null,null,null,{"$f":"IF(E22=4,TRUE,FALSE)","v":false}]
[null,null,null,null,null,{"$f":"IF(E22=5,TRUE,FALSE)","v":false}]
[null,null,null,null,null,{"$f":"IF(E22=6,TRUE,FALSE)","v":false}]
[null,"Ações para alcançar a máxima resiliência","Instituição responsável","Prazo"]
[]
[]
[null,"1.1.3 - Revisão dos planos estratégicos",null,null,null,null,"1.1.3"]
[null,"Pergunta","Comentários"]
[]
[null,"Resposta","Fornecer meios de verificação (explicação e evidência)"]
[null,null,null,null,null,{"$f":"IF(E35=1,TRUE,FALSE)","v":false}]
[null,null,null,null,null,{"$f":"IF(E35=2,TRUE,FALSE)","v":false}]
[null,null,null,null,null,{"$f":"IF(E35=3,TRUE,FALSE)","v":false}]
[null,null,null,null,null,{"$f":"IF(E35=4,TRUE,FALSE)","v":false}]
[null,null,null,null,null,{"$f":"IF(E35=5,TRUE,FALSE)","v":false}]
[null,null,null,null,null,{"$f":"IF(E35=6,TRUE,FALSE)","v":false}]
[null,"Ações para alcançar a máxima resiliência","Instituição responsável","Prazo"]
[]
[]
[null,"1.2 - Organização, coordenação e participação ",null,null,null,null,"1.2"]
[]
[null,"1.2.1 - Preparação e planeamento pré-eventos ",null,null,null,null,"1.2.1"]
[null,"Pergunta","Comentários"]
[]
[null,"Resposta","Fornecer meios de verificação (explicação e evidência)"]
[null,null,null,null,null,{"$f":"IF(E50=1,TRUE,FALSE)","v":false}]
[null,null,null,null,null,{"$f":"IF(E50=2,TRUE,FALSE)","v":false}]
[null,null,null,null,null,{"$f":"IF(E50=3,TRUE,FALSE)","v":false}]
[null,null,null,null,null,{"$f":"IF(E50=4,TRUE,FALSE)","v":false}]
[null,null,null,null,null,{"$f":"IF(E50=5,TRUE,FALSE)","v":false}]
[null,null,null,null,null,{"$f":"IF(E50=6,TRUE,FALSE)","v":false}]
[null,"Ações para alcançar a máxima resiliência","Instituição responsável","Prazo"]
[]
[]
[null,"1.2.2 - Coordenação  da resposta ao evento",null,null,null,null,"1.2.2"]
[null,"Pergunta","Comentários"]
[]
[null,"Resposta","Fornecer meios de verificação (explicação e evidência)"]
[null,null,null,null,null,{"$f":"IF(E63=1,TRUE,FALSE)","v":false}]
[null,null,null,null,null,{"$f":"IF(E63=2,TRUE,FALSE)","v":false}]
[null,null,null,null,null,{"$f":"IF(E63=3,TRUE,FALSE)","v":false}]
[null,null,null,null,null,{"$f":"IF(E63=4,TRUE,FALSE)","v":false}]
[null,null,null,null,null,{"$f":"IF(E63=5,TRUE,FALSE)","v":false}]
[null,null,null,null,null,{"$f":"IF(E63=6,TRUE,FALSE)","v":false}]
[null,"Ações para alcançar a máxima resiliência","Instituição responsável","Prazo"]
[]
[]
[null,"1.2.3 - Recursos da cidade para gestão da organização, coordenação e participação \n",null,null,null,null,"1.2.3"]
[null,"Pergunta","Comentários"]
[]
[null,"Resposta","Fornecer meios de verificação (explicação e evidência)"]
[null,null,null,null,null,{"$f":"IF(E76=1,TRUE,FALSE)","v":false}]
[null,null,null,null,null,{"$f":"IF(E76=2,TRUE,FALSE)","v":false}]
[null,null,null,null,null,{"$f":"IF(E76=3,TRUE,FALSE)","v":false}]
[null,null,null,null,null,{"$f":"IF(E76=4,TRUE,FALSE)","v":false}]
[null,null,null,null,null,{"$f":"IF(E76=5,TRUE,FALSE)","v":false}]
[null,null,null,null,null,{"$f":"IF(E76=6,TRUE,FALSE)","v":false}]
[null,"Ações para alcançar a máxima resiliência","Instituição responsável","Prazo"]
[]
[]
[null,"1.2.4 - Identificação das contribuições físicas ",null,null,null,null,"1.2.4"]
[null,"Pergunta","Comentários"]
[]
[null,"Resposta","Fornecer meios de verificação (explicação e evidência)"]
[null,null,null,null,null,{"$f":"IF(E89=1,TRUE,FALSE)","v":false}]
[null,null,null,null,null,{"$f":"IF(E89=2,TRUE,FALSE)","v":false}]
[null,null,null,null,null,{"$f":"IF(E89=3,TRUE,FALSE)","v":false}]
[null,null,null,null,null,{"$f":"IF(E89=4,TRUE,FALSE)","v":false}]
[null,null,null,null,null,{"$f":"IF(E89=5,TRUE,FALSE)","v":false}]
[null,null,null,null,null,{"$f":"IF(E89=6,TRUE,FALSE)","v":false}]
[null,"Ações para alcançar a máxima resiliência","Instituição responsável","Prazo"]
[]
[]
[null,"1.3 - Integração",null,null,null,null,"1.3"]
[]
[null,"1.3.1 - Integração da resiliência a catástrofes com outras iniciativas",null,null,null,null,"1.3.1"]
[null,"Pergunta","Comentários"]
[]
[null,"Resposta","Fornecer meios de verificação (explicação e evidência)"]
[null,null,null,null,null,{"$f":"IF(E104=1,TRUE,FALSE)","v":false}]
[null,null,null,null,null,{"$f":"IF(E104=2,TRUE,FALSE)","v":false}]
[null,null,null,null,null,{"$f":"IF(E104=3,TRUE,FALSE)","v":false}]
[null,null,null,null,null,{"$f":"IF(E104=4,TRUE,FALSE)","v":false}]
[null,null,null,null,null,{"$f":"IF(E104=5,TRUE,FALSE)","v":false}]
[null,null,null,null,null,{"$f":"IF(E104=6,TRUE,FALSE)","v":false}]
[null,"Ações para alcançar a máxima resiliência","Instituição responsável","Prazo"]
[]
[]
[null,"1.4 -Captação, partilha e publicação dos dados",null,null,null,null,"1.4"]
[]
[null,"1.4.1 - Medida em que os dados sobre a posição da resiliência da cidade são partilhados com as outras organizações locais\n",null,null,null,null,"1.4.1"]
[null,"Pergunta","Comentários"]
[]
[null,"Resposta","Fornecer meios de verificação (explicação e evidência)"]
[null,null,null,null,null,{"$f":"IF(E119=1,TRUE,FALSE)","v":false}]
[null,null,null,null,null,{"$f":"IF(E119=2,TRUE,FALSE)","v":false}]
[null,null,null,null,null,{"$f":"IF(E119=3,TRUE,FALSE)","v":false}]
[null,null,null,null,null,{"$f":"IF(E119=4,TRUE,FALSE)","v":false}]
[null,null,null,null,null,{"$f":"IF(E119=5,TRUE,FALSE)","v":false}]
[null,null,null,null,null,{"$f":"IF(E119=6,TRUE,FALSE)","v":false}]
[null,"Ações para alcançar a máxima resiliência","Instituição responsável","Prazo"]

{"sheet":"E02","index":4,"n_rows":88,"n_cols":7,"rows_kept":88,"cut":false,"hidden":false,"merged":[[50,2,50,3],[5,2,5,3],[6,2,6,3],[7,2,7,3],[20,2,20,3],[21,2,21,3],[22,2,22,3],[8,2,13,3],[23,2,28,3],[36,2,41,3],[33,2,33,3],[34,2,34,3],[35,2,35,3],[48,2,48,3],[49,2,49,3],[51,2,56,3],[66,2,71,3],[81,2,86,3],[63,2,63,3],[64,2,64,3],[65,2,65,3],[78,2,78,3],[79,2,79,3],[80,2,80,3]]}
[]
[]
[null,"2.1 - Avaliação do perigo",null,null,null,null,"2.1"]
[]
[null,"2.1.1 - Conhecimento dos perigos (também chamado de risco ou choques e stresses) e respetivas probabilidades que a cidade enfrenta \n",null,null,null,null,"2.1.1"]
[null,"Pergunta","Comentários"]
[]
[null,"Resposta","Fornecer meios de verificação (explicação e evidência)"]
[null,null,null,null,null,{"$f":"IF(E9=1,TRUE,FALSE)","v":false}]
[null,null,null,null,null,{"$f":"IF(E9=2,TRUE,FALSE)","v":false}]
[null,null,null,null,null,{"$f":"IF(E9=3,TRUE,FALSE)","v":false}]
[null,null,null,null,null,{"$f":"IF(E9=4,TRUE,FALSE)","v":false}]
[null,null,null,null,null,{"$f":"IF(E9=5,TRUE,FALSE)","v":false}]
[null,null,null,null,null,{"$f":"IF(E9=6,TRUE,FALSE)","v":false}]
[null,"Ações para alcançar a máxima resiliência","Instituição responsável","Prazo"]
[]
[]
[null,"2.2 - Conhecimento da exposição e das consequências",null,null,null,null,"2.2"]
[]
[null,"2.2.1 - Conhecimento da exposição e vulnerabilidade ",null,null,null,null,"2.2.1"]
[null,"Pergunta","Comentários"]
[]
[null,"Resposta","Fornecer meios de verificação (explicação e evidência)"]
[null,null,null,null,null,{"$f":"IF(E24=1,TRUE,FALSE)","v":false}]
[null,null,null,null,null,{"$f":"IF(E24=2,TRUE,FALSE)","v":false}]
[null,null,null,null,null,{"$f":"IF(E24=3,TRUE,FALSE)","v":false}]
[null,null,null,null,null,{"$f":"IF(E24=4,TRUE,FALSE)","v":false}]
[null,null,null,null,null,{"$f":"IF(E24=5,TRUE,FALSE)","v":false}]
[null,null,null,null,null,{"$f":"IF(E24=6,TRUE,FALSE)","v":false}]
[null,"Ações para alcançar a máxima resiliência","Instituição responsável","Prazo"]
[]
[]
[null,"2.2.2 - Estimativa de danos e perdas",null,null,null,null,"2.2.2"]
[null,"Pergunta","Comentários"]
[]
[null,"Resposta","Fornecer meios de verificação (explicação e evidência)"]
[null,null,null,null,null,{"$f":"IF(E37=1,TRUE,FALSE)","v":false}]
[null,null,null,null,null,{"$f":"IF(E37=2,TRUE,FALSE)","v":false}]
[null,null,null,null,null,{"$f":"IF(E37=3,TRUE,FALSE)","v":false}]
[null,null,null,null,null,{"$f":"IF(E37=4,TRUE,FALSE)","v":false}]
[null,null,null,null,null,{"$f":"IF(E37=5,TRUE,FALSE)","v":false}]
[null,null,null,null,null,{"$f":"IF(E37=6,TRUE,FALSE)","v":false}]
[null,"Ações para alcançar a máxima resiliência","Instituição responsável","Prazo"]
[]
[]
[null,"2.3 - Interdependências ou impactos em cascata ",null,null,null,null,"2.3"]
[]
[null,"2.3.1 - Compreensão dos ativos críticos e as ligações entre estes",null,null,null,null,"2.3.1"]
[null,"Pergunta","Comentários"]
[]
[null,"Resposta","Fornecer meios de verificação (explicação e evidência)"]
[null,null,null,null,null,{"$f":"IF(E52=1,TRUE,FALSE)","v":false}]
[null,null,null,null,null,{"$f":"IF(E52=2,TRUE,FALSE)","v":false}]
[null,null,null,null,null,{"$f":"IF(E52=3,TRUE,FALSE)","v":false}]
[null,null,null,null,null,{"$f":"IF(E52=4,TRUE,FALSE)","v":false}]
[null,null,null,null,null,{"$f":"IF(E52=5,TRUE,FALSE)","v":false}]
[null,null,null,null,null,{"$f":"IF(E52=6,TRUE,FALSE)","v":false}]
[null,"Ações para alcançar a máxima resiliência","Instituição responsável","Prazo"]
[]
[]
[null,"2.4 - Mapas de perigos",null,null,null,null,"2.4"]
[]
[null,"2.4.1 - Mapas de perigos",null,null,null,null,"2.4.1"]
[null,"Pergunta","Comentários"]
[]
[null,"Resposta","Fornecer meios de verificação (explicação e evidência)"]
[null,null,null,null,null,{"$f":"IF(E67=1,TRUE,FALSE)","v":false}]
[null,null,null,null,null,{"$f":"IF(E67=2,TRUE,FALSE)","v":false}]
[null,null,null,null,null,{"$f":"IF(E67=3,TRUE,FALSE)","v":false}]
[null,null,null,null,null,{"$f":"IF(E67=4,TRUE,FALSE)","v":false}]
[null,null,null,null,null,{"$f":"IF(E67=5,TRUE,FALSE)","v":false}]
[null,null,null,null,null,{"$f":"IF(E67=6,TRUE,FALSE)","v":false}]
[null,"Ações para alcançar a máxima resiliência","Instituição responsável","Prazo"]
[]
[]
[null,"2.5 - Atualização do cenário, risco, vulnerabilidade e exposição da informação",null,null,null,null,"2.5"]
[]
[null,"2.5.1 - Processo de atualização",null,null,null,null,"2.5.1"]
[null,"Pergunta","Comentários"]
[]
[null,"Resposta","Fornecer meios de verificação (explicação e evidência)"]
[null,null,null,null,null,{"$f":"IF(E82=1,TRUE,FALSE)","v":false}]
[null,null,null,null,null,{"$f":"IF(E82=2,TRUE,FALSE)","v":false}]
[null,null,null,null,null,{"$f":"IF(E82=3,TRUE,FALSE)","v":false}]
[null,null,null,null,null,{"$f":"IF(E82=4,TRUE,FALSE)","v":false}]
[null,null,null,null,null,{"$f":"IF(E82=5,TRUE,FALSE)","v":false}]
[null,null,null,null,null,{"$f":"IF(E82=6,TRUE,FALSE)","v":false}]
[null,"Ações para alcançar a máxima resiliência","Instituição responsável","Prazo"]

{"sheet":"E03","index":5,"n_rows":138,"n_cols":7,"rows_kept":138,"cut":false,"hidden":false,"merged":[[21,2,21,3],[4,1,4,3],[5,2,5,3],[6,2,6,3],[7,2,7,3],[20,2,20,3],[8,2,13,3],[60,2,60,3],[22,2,22,3],[32,1,32,3],[33,2,33,3],[34,2,34,3],[35,2,35,3],[45,1,45,3],[46,2,46,3],[47,2,47,3],[48,2,48,3],[58,1,58,3],[59,2,59,3],[49,2,54,3],[36,2,41,3],[23,2,28,3],[114,1,114,3],[87,2,87,3],[88,2,88,3],[89,2,89,3],[61,2,61,3],[73,1,73,3],[74,2,74,3],[75,2,75,3],[76,2,76,3],[86,1,86,3],[62,2,67,3],[131,2,136,3],[118,2,123,3],[105,2,110,3],[90,2,95,3],[77,2,82,3],[130,2,130,3],[115,2,115,3],[116,2,116,3],[117,2,117,3],[127,1,127,3],[128,2,128,3],[129,2,129,3],[101,1,101,3],[102,2,102,3],[103,2,103,3],[104,2,104,3]]}
[]
[]
[null,"3.1 - Conhecimento das abordagens para atrair novos investimentos para a cidade para RRC",null,null,null,null,"3.1"]
[]
[null,"3.1.1 - Sensibilização e conhecimento de todos os métodos possíveis de financiamento e fundos, conforme necessário Conforme necessário, a cidade está ativamente à procura de financiamento e fundos\nObservação: Se existir fundos suficientes, estes critérios de avaliação podem ser omissos\n",null,null,null,null,"3.1.1"]
[null,"Pergunta","Comentários"]
[]
[null,"Resposta","Fornecer meios de verificação (explicação e evidência)"]
[null,null,null,null,null,{"$f":"IF(E9=1,TRUE,FALSE)","v":false}]
[null,null,null,null,null,{"$f":"IF(E9=2,TRUE,FALSE)","v":false}]
[null,null,null,null,null,{"$f":"IF(E9=3,TRUE,FALSE)","v":false}]
[null,null,null,null,null,{"$f":"IF(E9=4,TRUE,FALSE)","v":false}]
[null,null,null,null,null,{"$f":"IF(E9=5,TRUE,FALSE)","v":false}]
[null,null,null,null,null,{"$f":"IF(E9=6,TRUE,FALSE)","v":false}]
[null,"Ações para alcançar a máxima resiliência","Instituição responsável","Prazo"]
[]
[]
[null,"3.2 - Orçamentos da resiliência dentro do plano financeiro da cidade, incluindo fundos de contingência",null,null,null,null,"3.2"]
[]
[null,"3.2.1 - Adequação do planeamento financeiro para todas as ações necessáriaspara resiliência a catástrofes\n",null,null,null,null,"3.2.1"]
[null,"Pergunta","Comentários"]
[]
[null,"Resposta","Fornecer meios de verificação (explicação e evidência)"]
[null,null,null,null,null,{"$f":"IF(E24=1,TRUE,FALSE)","v":false}]
[null,null,null,null,null,{"$f":"IF(E24=2,TRUE,FALSE)","v":false}]
[null,null,null,null,null,{"$f":"IF(E24=3,TRUE,FALSE)","v":false}]
[null,null,null,null,null,{"$f":"IF(E24=4,TRUE,FALSE)","v":false}]
[null,null,null,null,null,{"$f":"IF(E24=5,TRUE,FALSE)","v":false}]
[null,null,null,null,null,{"$f":"IF(E24=6,TRUE,FALSE)","v":false}]
[null,"Ações para alcançar a máxima resiliência","Instituição responsável","Prazo"]
[]
[]
[null,"3.2.2 - Financiamento de capital para engenharia de longo prazo e outros trabalhos que incluem cenários e ativos críticos identificados nos Principio 2 e Principio 8\n",null,null,null,null,"3.2.2"]
[null,"Pergunta","Comentários"]
[]
[null,"Resposta","Fornecer meios de verificação (explicação e evidência)"]
[null,null,null,null,null,{"$f":"IF(E37=1,TRUE,FALSE)","v":false}]
[null,null,null,null,null,{"$f":"IF(E37=2,TRUE,FALSE)","v":false}]
[null,null,null,null,null,{"$f":"IF(E37=3,TRUE,FALSE)","v":false}]
[null,null,null,null,null,{"$f":"IF(E37=4,TRUE,FALSE)","v":false}]
[null,null,null,null,null,{"$f":"IF(E37=5,TRUE,FALSE)","v":false}]
[null,null,null,null,null,{"$f":"IF(E37=6,TRUE,FALSE)","v":false}]
[null,"Ações para alcançar a máxima resiliência","Instituição responsável","Prazo"]
[]
[]
[null,"3.2.3 - Fundo de operação para atender todos os custos de operação das atividades da resiliência a catástrofes",null,null,null,null,"3.2.3"]
[null,"Pergunta","Comentários"]
[]
[null,"Resposta","Fornecer meios de verificação (explicação e evidência)"]
[null,null,null,null,null,{"$f":"IF(E50=1,TRUE,FALSE)","v":false}]
[null,null,null,null,null,{"$f":"IF(E50=2,TRUE,FALSE)","v":false}]
[null,null,null,null,null,{"$f":"IF(E50=3,TRUE,FALSE)","v":false}]
[null,null,null,null,null,{"$f":"IF(E50=4,TRUE,FALSE)","v":false}]
[null,null,null,null,null,{"$f":"IF(E50=5,TRUE,FALSE)","v":false}]
[null,null,null,null,null,{"$f":"IF(E50=6,TRUE,FALSE)","v":false}]
[null,"Ações para alcançar a máxima resiliência","Instituição responsável","Prazo"]
[]
[]
[null,"3.2.4 - Fundo (s) de contingência para a recuperação pós-catástrofe (pode ser referido como um “fundo de emergência”)",null,null,null,null,"3.2.4"]
[null,"Pergunta","Comentários"]
[]
[null,"Resposta","Fornecer meios de verificação (explicação e evidência)"]
[null,null,null,null,null,{"$f":"IF(E63=1,TRUE,FALSE)","v":false}]
[null,null,null,null,null,{"$f":"IF(E63=2,TRUE,FALSE)","v":false}]
[null,null,null,null,null,{"$f":"IF(E63=3,TRUE,FALSE)","v":false}]
[null,null,null,null,null,{"$f":"IF(E63=4,TRUE,FALSE)","v":false}]
[null,null,null,null,null,{"$f":"IF(E63=5,TRUE,FALSE)","v":false}]
[null,null,null,null,null,{"$f":"IF(E63=6,TRUE,FALSE)","v":false}]
[null,"Ações para alcançar a máxima resiliência","Instituição responsável","Prazo"]
[]
[]
[null,"3.3 - Seguro",null,null,null,null,"3.3"]
[]
[null,"3.3.1 - Cobertura de seguro doméstico",null,null,null,null,"3.3.1"]
[null,"Pergunta","Comentários"]
[]
[null,"Resposta","Fornecer meios de verificação (explicação e evidência)"]
[null,null,null,null,null,{"$f":"IF(E78=1,TRUE,FALSE)","v":false}]
[null,null,null,null,null,{"$f":"IF(E78=2,TRUE,FALSE)","v":false}]
[null,null,null,null,null,{"$f":"IF(E78=3,TRUE,FALSE)","v":false}]
[null,null,null,null,null,{"$f":"IF(E78=4,TRUE,FALSE)","v":false}]
[null,null,null,null,null,{"$f":"IF(E78=5,TRUE,FALSE)","v":false}]
[null,null,null,null,null,{"$f":"IF(E78=6,TRUE,FALSE)","v":false}]
[null,"Ações para alcançar a máxima resiliência","Instituição responsável","Prazo"]
[]
[]
[null,"3.3.2 - Cobertura de seguro externo",null,null,null,null,"3.3.2"]
[null,"Pergunta","Comentários"]
[]
[null,"Resposta","Fornecer meios de verificação (explicação e evidência)"]
[null,null,null,null,null,{"$f":"IF(E91=1,TRUE,FALSE)","v":false}]
[null,null,null,null,null,{"$f":"IF(E91=2,TRUE,FALSE)","v":false}]
[null,null,null,null,null,{"$f":"IF(E91=3,TRUE,FALSE)","v":false}]
[null,null,null,null,null,{"$f":"IF(E91=4,TRUE,FALSE)","v":false}]
[null,null,null,null,null,{"$f":"IF(E91=5,TRUE,FALSE)","v":false}]
[null,null,null,null,null,{"$f":"IF(E91=6,TRUE,FALSE)","v":false}]
[null,"Ações para alcançar a máxima resiliência","Instituição responsável","Prazo"]
[]
[]
[null,"3.4 - Incentivos e financiamento para as empresas, organizações comunitárias e os cidadãos.",null,null,null,null,"3.4"]
[]
[null,"3.4.1 - Incentivos para as empresas melhorarem a resiliência a catástrofes – planos de catástrofe, premissas etc",null,null,null,null,"3.4.1"]
[null,"Pergunta","Comentários"]
[]
[null,"Resposta","Fornecer meios de verificação (explicação e evidência)"]
[null,null,null,null,null,{"$f":"IF(E106=1,TRUE,FALSE)","v":false}]
[null,null,null,null,null,{"$f":"IF(E106=2,TRUE,FALSE)","v":false}]
[null,null,null,null,null,{"$f":"IF(E106=3,TRUE,FALSE)","v":false}]
[null,null,null,null,null,{"$f":"IF(E106=4,TRUE,FALSE)","v":false}]
[null,null,null,null,null,{"$f":"IF(E106=5,TRUE,FALSE)","v":false}]
[null,null,null,null,null,{"$f":"IF(E106=6,TRUE,FALSE)","v":false}]
[null,"Ações para alcançar a máxima resiliência","Instituição responsável","Prazo"]
[]
[]
[null,"3.4.2 - Incentivos para organizações sem fins lucrativos pra melhorar a resiliência a catástrofes – planos de Catástrofe, premissas etc\n",null,null,null,null,"3.4.2"]
[null,"Pergunta","Comentários"]
[]
[null,"Resposta","Fornecer meios de verificação (explicação e evidência)"]
[null,null,null,null,null,{"$f":"IF(E119=1,TRUE,FALSE)","v":false}]
[null,null,null,null,null,{"$f":"IF(E119=2,TRUE,FALSE)","v":false}]
[null,null,null,null,null,{"$f":"IF(E119=3,TRUE,FALSE)","v":false}]
[null,null,null,null,null,{"$f":"IF(E119=4,TRUE,FALSE)","v":false}]
[null,null,null,null,null,{"$f":"IF(E119=5,TRUE,FALSE)","v":false}]
[null,null,null,null,null,{"$f":"IF(E119=6,TRUE,FALSE)","v":false}]
[null,"Ações para alcançar a máxima resiliência","Instituição responsável","Prazo"]
[]
[]
[null,"3.4.3 - Incentivos para os proprietários de casas melhorarem a resiliência a catástrofes – planos de catástrofe, premissas etc",null,null,null,null,"3.4.3"]
[null,"Pergunta","Comentários"]
[]
[null,"Resposta","Fornecer meios de verificação (explicação e evidência)"]
[null,null,null,null,null,{"$f":"IF(E132=1,TRUE,FALSE)","v":false}]
[null,null,null,null,null,{"$f":"IF(E132=2,TRUE,FALSE)","v":false}]
[null,null,null,null,null,{"$f":"IF(E132=3,TRUE,FALSE)","v":false}]
[null,null,null,null,null,{"$f":"IF(E132=4,TRUE,FALSE)","v":false}]
[null,null,null,null,null,{"$f":"IF(E132=5,TRUE,FALSE)","v":false}]
[null,null,null,null,null,{"$f":"IF(E132=6,TRUE,FALSE)","v":false}]
[null,"Ações para alcançar a máxima resiliência","Instituição responsável","Prazo"]

{"sheet":"E04","index":6,"n_rows":138,"n_cols":7,"rows_kept":138,"cut":false,"hidden":false,"merged":[[131,2,136,3],[118,2,123,3],[103,2,108,3],[90,2,95,3],[77,2,82,3],[100,2,100,3],[99,1,99,3],[127,1,127,3],[128,2,128,3],[129,2,129,3],[130,2,130,3],[101,2,101,3],[102,2,102,3],[114,1,114,3],[115,2,115,3],[116,2,116,3],[18,2,18,3],[4,1,4,3],[5,2,5,3],[6,2,6,3],[7,2,7,3],[17,1,17,3],[8,2,13,3],[59,2,59,3],[19,2,19,3],[20,2,20,3],[30,1,30,3],[31,2,31,3],[32,2,32,3],[33,2,33,3],[43,1,43,3],[44,2,44,3],[45,2,45,3],[46,2,46,3],[58,1,58,3],[47,2,52,3],[34,2,39,3],[21,2,26,3],[60,2,60,3],[61,2,61,3],[73,1,73,3],[74,2,74,3],[75,2,75,3],[62,2,67,3],[117,2,117,3],[76,2,76,3],[86,1,86,3],[87,2,87,3],[88,2,88,3],[89,2,89,3]]}
[]
[]
[null,"4.1 - Zoneamento do uso do solo",null,null,null,null,"4.1"]
[]
[null,"4.1.1 - Possível desalojamento  da população ",null,null,null,null,"4.1.1"]
[null,"Pergunta","Comentários"]
[]
[null,"Resposta","Fornecer meios de verificação (explicação e evidência)"]
[null,null,null,null,null,{"$f":"IF(E9=1,TRUE,FALSE)","v":false}]
[null,null,null,null,null,{"$f":"IF(E9=2,TRUE,FALSE)","v":false}]
[null,null,null,null,null,{"$f":"IF(E9=3,TRUE,FALSE)","v":false}]
[null,null,null,null,null,{"$f":"IF(E9=4,TRUE,FALSE)","v":false}]
[null,null,null,null,null,{"$f":"IF(E9=5,TRUE,FALSE)","v":false}]
[null,null,null,null,null,{"$f":"IF(E9=6,TRUE,FALSE)","v":false}]
[null,"Ações para alcançar a máxima resiliência","Instituição responsável","Prazo"]
[]
[]
[null,"4.1.2 - Actividade económica em risco",null,null,null,null,"4.1.2"]
[null,"Pergunta","Comentários"]
[]
[null,"Resposta","Fornecer meios de verificação (explicação e evidência)"]
[null,null,null,null,null,{"$f":"IF(E22=1,TRUE,FALSE)","v":false}]
[null,null,null,null,null,{"$f":"IF(E22=2,TRUE,FALSE)","v":false}]
[null,null,null,null,null,{"$f":"IF(E22=3,TRUE,FALSE)","v":false}]
[null,null,null,null,null,{"$f":"IF(E22=4,TRUE,FALSE)","v":false}]
[null,null,null,null,null,{"$f":"IF(E22=5,TRUE,FALSE)","v":false}]
[null,null,null,null,null,{"$f":"IF(E22=6,TRUE,FALSE)","v":false}]
[null,"Ações para alcançar a máxima resiliência","Instituição responsável","Prazo"]
[]
[]
[null,"4.1.2.1 - Actividade económica em risco",null,null,null,null,"4.1.2.1"]
[null,"Pergunta","Comentários"]
[]
[null,"Resposta","Fornecer meios de verificação (explicação e evidência)"]
[null,null,null,null,null,{"$f":"IF(E35=1,TRUE,FALSE)","v":false}]
[null,null,null,null,null,{"$f":"IF(E35=2,TRUE,FALSE)","v":false}]
[null,null,null,null,null,{"$f":"IF(E35=3,TRUE,FALSE)","v":false}]
[null,null,null,null,null,{"$f":"IF(E35=4,TRUE,FALSE)","v":false}]
[null,null,null,null,null,{"$f":"IF(E35=5,TRUE,FALSE)","v":false}]
[null,null,null,null,null,{"$f":"IF(E35=6,TRUE,FALSE)","v":false}]
[null,"Ações para alcançar a máxima resiliência","Instituição responsável","Prazo"]
[]
[]
[null,"4.1.3 - Áreas agrícolas em risco",null,null,null,null,"4.1.3"]
[null,"Pergunta","Comentários"]
[]
[null,"Resposta","Fornecer meios de verificação (explicação e evidência)"]
[null,null,null,null,null,{"$f":"IF(E48=1,TRUE,FALSE)","v":false}]
[null,null,null,null,null,{"$f":"IF(E48=2,TRUE,FALSE)","v":false}]
[null,null,null,null,null,{"$f":"IF(E48=3,TRUE,FALSE)","v":false}]
[null,null,null,null,null,{"$f":"IF(E48=4,TRUE,FALSE)","v":false}]
[null,null,null,null,null,{"$f":"IF(E48=5,TRUE,FALSE)","v":false}]
[null,null,null,null,null,{"$f":"IF(E48=6,TRUE,FALSE)","v":false}]
[null,"Ações para alcançar a máxima resiliência","Instituição responsável","Prazo"]
[]
[]
[null,"4.2 - Novo desenvolvimento urbano",null,null,null,null,"4.2"]
[]
[null,"4.2.1 - Soluções do projeto urbano que aumentam a resiliência",null,null,null,null,"4.2.1"]
[null,"Pergunta","Comentários"]
[]
[null,"Response","Provide means of verification (explanation and evidence)"]
[null,null,null,null,null,{"$f":"IF(E63=1,TRUE,FALSE)","v":false}]
[null,null,null,null,null,{"$f":"IF(E63=2,TRUE,FALSE)","v":false}]
[null,null,null,null,null,{"$f":"IF(E63=3,TRUE,FALSE)","v":false}]
[null,null,null,null,null,{"$f":"IF(E63=4,TRUE,FALSE)","v":false}]
[null,null,null,null,null,{"$f":"IF(E63=5,TRUE,FALSE)","v":false}]
[null,null,null,null,null,{"$f":"IF(E63=6,TRUE,FALSE)","v":false}]
[null,"Ações para alcançar a máxima resiliência","Instituição responsável","Prazo"]
[]
[]
[null,"4.3 - Normas e códigos de construção",null,null,null,null,"4.3"]
[]
[null,"4.3.1 - Existência de códigos de construção projetados para fazer face aos riscos identificados no Principio 2.",null,null,null,null,"4.3.1"]
[null,"Pergunta","Comentários"]
[]
[null,"Resposta","Fornecer meios de verificação (explicação e evidência)"]
[null,null,null,null,null,{"$f":"IF(E78=1,TRUE,FALSE)","v":false}]
[null,null,null,null,null,{"$f":"IF(E78=2,TRUE,FALSE)","v":false}]
[null,null,null,null,null,{"$f":"IF(E78=3,TRUE,FALSE)","v":false}]
[null,null,null,null,null,{"$f":"IF(E78=4,TRUE,FALSE)","v":false}]
[null,null,null,null,null,{"$f":"IF(E78=5,TRUE,FALSE)","v":false}]
[null,null,null,null,null,{"$f":"IF(E78=6,TRUE,FALSE)","v":false}]
[null,"Ações para alcançar a máxima resiliência","Instituição responsável","Prazo"]
[]
[]
[null,"4.3.2 - Atualizações para os códigos da construção",null,null,null,null,"4.3.2"]
[null,"Pergunta","Comentários"]
[]
[null,"Resposta","Fornecer meios de verificação (explicação e evidência)"]
[null,null,null,null,null,{"$f":"IF(E91=1,TRUE,FALSE)","v":false}]
[null,null,null,null,null,{"$f":"IF(E91=2,TRUE,FALSE)","v":false}]
[null,null,null,null,null,{"$f":"IF(E91=3,TRUE,FALSE)","v":false}]
[null,null,null,null,null,{"$f":"IF(E91=4,TRUE,FALSE)","v":false}]
[null,null,null,null,null,{"$f":"IF(E91=5,TRUE,FALSE)","v":false}]
[null,null,null,null,null,{"$f":"IF(E91=6,TRUE,FALSE)","v":false}]
[null,"Ações para alcançar a máxima resiliência","Instituição responsável","Prazo"]
[]
[]
[null,"4.3.3 - Normas sustentáveis do projeto de construção",null,null,null,null,"4.3.3"]
[null,"Pergunta","Comentários"]
[]
[null,"Resposta","Fornecer meios de verificação (explicação e evidência)"]
[null,null,null,null,null,{"$f":"IF(E104=1,TRUE,FALSE)","v":false}]
[null,null,null,null,null,{"$f":"IF(E104=2,TRUE,FALSE)","v":false}]
[null,null,null,null,null,{"$f":"IF(E104=3,TRUE,FALSE)","v":false}]
[null,null,null,null,null,{"$f":"IF(E104=4,TRUE,FALSE)","v":false}]
[null,null,null,null,null,{"$f":"IF(E104=5,TRUE,FALSE)","v":false}]
[null,null,null,null,null,{"$f":"IF(E104=6,TRUE,FALSE)","v":false}]
[null,"Ações para alcançar a máxima resiliência","Instituição responsável","Prazo"]
[]
[]
[null,"4.4 - Aplicação dos códigos e normas de construção e zoneamento",null,null,null,null,"4.4"]
[]
[null,"4.4.1 - Aplicação de zoneamento do uso do solo",null,null,null,null,"4.4.1"]
[null,"Pergunta","Comentários"]
[]
[null,"Resposta","Fornecer meios de verificação (explicação e evidência)"]
[null,null,null,null,null,{"$f":"IF(E119=1,TRUE,FALSE)","v":false}]
[null,null,null,null,null,{"$f":"IF(E119=2,TRUE,FALSE)","v":false}]
[null,null,null,null,null,{"$f":"IF(E119=3,TRUE,FALSE)","v":false}]
[null,null,null,null,null,{"$f":"IF(E119=4,TRUE,FALSE)","v":false}]
[null,null,null,null,null,{"$f":"IF(E119=5,TRUE,FALSE)","v":false}]
[null,null,null,null,null,{"$f":"IF(E119=6,TRUE,FALSE)","v":false}]
[null,"Ações para alcançar a máxima resiliência","Instituição responsável","Prazo"]
[]
[]
[null,"4.4.2 - Aplicação dos códigos de construção",null,null,null,null,"4.4.2"]
[null,"Pergunta","Comentários"]
[]
[null,"Resposta","Fornecer meios de verificação (explicação e evidência)"]
[null,null,null,null,null,{"$f":"IF(E132=1,TRUE,FALSE)","v":false}]
[null,null,null,null,null,{"$f":"IF(E132=2,TRUE,FALSE)","v":false}]
[null,null,null,null,null,{"$f":"IF(E132=3,TRUE,FALSE)","v":false}]
[null,null,null,null,null,{"$f":"IF(E132=4,TRUE,FALSE)","v":false}]
[null,null,null,null,null,{"$f":"IF(E132=5,TRUE,FALSE)","v":false}]
[null,null,null,null,null,{"$f":"IF(E132=6,TRUE,FALSE)","v":false}]
[null,"Ações para alcançar a máxima resiliência","Instituição responsável","Prazo"]

{"sheet":"E05","index":7,"n_rows":84,"n_cols":7,"rows_kept":84,"cut":false,"hidden":false,"merged":[[36,2,41,3],[49,2,54,3],[64,2,69,3],[77,2,82,3],[76,2,76,3],[45,1,45,3],[46,2,46,3],[47,2,47,3],[60,1,60,3],[61,2,61,3],[62,2,62,3],[63,2,63,3],[73,1,73,3],[74,2,74,3],[75,2,75,3],[35,2,35,3],[4,1,4,3],[5,2,5,3],[6,2,6,3],[7,2,7,3],[17,1,17,3],[18,2,18,3],[19,2,19,3],[20,2,20,3],[32,1,32,3],[33,2,33,3],[34,2,34,3],[8,2,13,3],[21,2,26,3]]}
[]
[]
[null,"5.1 - Ambiente natural existente e saúde de ecossistema",null,null,null,null,"5.1"]
[]
[null,"5.1.1 - Sensibilização da função que os serviços dos ecossistemas podem desempenhar na resiliência a catástrofes",null,null,null,null,"5.1.1"]
[null,"Pergunta","Comentários"]
[]
[null,"Resposta","Fornecer meios de verificação (explicação e evidência)"]
[null,null,null,null,null,{"$f":"IF(E9=1,TRUE,FALSE)","v":false}]
[null,null,null,null,null,{"$f":"IF(E9=2,TRUE,FALSE)","v":false}]
[null,null,null,null,null,{"$f":"IF(E9=3,TRUE,FALSE)","v":false}]
[null,null,null,null,null,{"$f":"IF(E9=4,TRUE,FALSE)","v":false}]
[null,null,null,null,null,{"$f":"IF(E9=5,TRUE,FALSE)","v":false}]
[null,null,null,null,null,{"$f":"IF(E9=6,TRUE,FALSE)","v":false}]
[null,"Ações para alcançar a máxima resiliência","Instituição responsável","Prazo"]
[]
[]
[null,"5.1.2 - Saúde de ecossistema",null,null,null,null,"5.1.2"]
[null,"Pergunta","Comentários"]
[]
[null,"Resposta","Fornecer meios de verificação (explicação e evidência)"]
[null,null,null,null,null,{"$f":"IF(E22=1,TRUE,FALSE)","v":false}]
[null,null,null,null,null,{"$f":"IF(E22=2,TRUE,FALSE)","v":false}]
[null,null,null,null,null,{"$f":"IF(E22=3,TRUE,FALSE)","v":false}]
[null,null,null,null,null,{"$f":"IF(E22=4,TRUE,FALSE)","v":false}]
[null,null,null,null,null,{"$f":"IF(E22=5,TRUE,FALSE)","v":false}]
[null,null,null,null,null,{"$f":"IF(E22=6,TRUE,FALSE)","v":false}]
[null,"Ações para alcançar a máxima resiliência","Instituição responsável","Prazo"]
[]
[]
[null,"5.2 - Integração da infraestrutura verde e azul dentro dos projetos e políticas da cidade",null,null,null,null,"5.2"]
[]
[null,"5.2.1 - Impacto de uso do solo e outras políticas nos serviços ecossistemas",null,null,null,null,"5.2.1"]
[null,"Pergunta","Comentários"]
[]
[null,"Resposta","Fornecer meios de verificação (explicação e evidência)"]
[null,null,null,null,null,{"$f":"IF(E37=1,TRUE,FALSE)","v":false}]
[null,null,null,null,null,{"$f":"IF(E37=2,TRUE,FALSE)","v":false}]
[null,null,null,null,null,{"$f":"IF(E37=3,TRUE,FALSE)","v":false}]
[null,null,null,null,null,{"$f":"IF(E37=4,TRUE,FALSE)","v":false}]
[null,null,null,null,null,{"$f":"IF(E37=5,TRUE,FALSE)","v":false}]
[null,null,null,null,null,{"$f":"IF(E37=6,TRUE,FALSE)","v":false}]
[null,"Ações para alcançar a máxima resiliência","Instituição responsável","Prazo"]
[]
[]
[null,"5.2.2 - Infraestrutura verde e azul está regularmente incluído dentro dos projetos da cidade",null,null,null,null,"5.2.2"]
[null,"Pergunta","Comentários"]
[]
[null,"Ações para alcançar a máxima resiliência","Instituição responsável","Prazo"]
[null,null,null,null,null,{"$f":"IF(E50=1,TRUE,FALSE)","v":false}]
[null,null,null,null,null,{"$f":"IF(E50=2,TRUE,FALSE)","v":false}]
[null,null,null,null,null,{"$f":"IF(E50=3,TRUE,FALSE)","v":false}]
[null,null,null,null,null,{"$f":"IF(E50=4,TRUE,FALSE)","v":false}]
[null,null,null,null,null,{"$f":"IF(E50=5,TRUE,FALSE)","v":false}]
[null,null,null,null,null,{"$f":"IF(E50=6,TRUE,FALSE)","v":false}]
[null,"Ações para alcançar a máxima resiliência","Instituição responsável","Prazo"]
[]
[]
[null,"5.3 - Problemas ambientais e transfronteiriços",null,null,null,null,"5.3"]
[]
[null,"5.3.1 - Identificação dos ativos críticos ambientais",null,null,null,null,"5.3.1"]
[null,"Pergunta","Comentários"]
[]
[null,"Resposta","Fornecer meios de verificação (explicação e evidência)"]
[null,null,null,null,null,{"$f":"IF(E65=1,TRUE,FALSE)","v":false}]
[null,null,null,null,null,{"$f":"IF(E65=2,TRUE,FALSE)","v":false}]
[null,null,null,null,null,{"$f":"IF(E65=3,TRUE,FALSE)","v":false}]
[null,null,null,null,null,{"$f":"IF(E65=4,TRUE,FALSE)","v":false}]
[null,null,null,null,null,{"$f":"IF(E65=5,TRUE,FALSE)","v":false}]
[null,null,null,null,null,{"$f":"IF(E65=6,TRUE,FALSE)","v":false}]
[null,"Ações para alcançar a máxima resiliência","Instituição responsável","Prazo"]
[]
[]
[null,"5.3.2 - Acordos transfronteiriços",null,null,null,null,"5.3.2"]
[null,"Pergunta","Comentários"]
[]
[null,"Resposta","Fornecer meios de verificação (explicação e evidência)"]
[null,null,null,null,null,{"$f":"IF(E78=1,TRUE,FALSE)","v":false}]
[null,null,null,null,null,{"$f":"IF(E78=2,TRUE,FALSE)","v":false}]
[null,null,null,null,null,{"$f":"IF(E78=3,TRUE,FALSE)","v":false}]
[null,null,null,null,null,{"$f":"IF(E78=4,TRUE,FALSE)","v":false}]
[null,null,null,null,null,{"$f":"IF(E78=5,TRUE,FALSE)","v":false}]
[null,null,null,null,null,{"$f":"IF(E78=6,TRUE,FALSE)","v":false}]
[null,"Ações para alcançar a máxima resiliência","Instituição responsável","Prazo"]

{"sheet":"E06","index":8,"n_rows":181,"n_cols":7,"rows_kept":181,"cut":false,"hidden":false,"merged":[[18,2,18,3],[174,2,179,3],[159,2,164,3],[144,2,149,3],[131,2,136,3],[118,2,123,3],[103,2,108,3],[90,2,95,3],[75,2,80,3],[62,2,67,3],[47,2,52,3],[34,2,39,3],[21,2,26,3],[59,2,59,3],[19,2,19,3],[20,2,20,3],[4,1,4,3],[5,2,5,3],[6,2,6,3],[7,2,7,3],[17,1,17,3],[8,2,13,3],[30,1,30,3],[31,2,31,3],[32,2,32,3],[33,2,33,3],[43,1,43,3],[44,2,44,3],[45,2,45,3],[46,2,46,3],[58,1,58,3],[100,2,100,3],[60,2,60,3],[61,2,61,3],[71,1,71,3],[72,2,72,3],[73,2,73,3],[74,2,74,3],[86,1,86,3],[87,2,87,3],[88,2,88,3],[89,2,89,3],[99,1,99,3],[141,2,141,3],[101,2,101,3],[102,2,102,3],[114,1,114,3],[115,2,115,3],[116,2,116,3],[117,2,117,3],[127,1,127,3],[128,2,128,3],[129,2,129,3],[130,2,130,3],[140,1,140,3],[170,1,170,3],[171,2,171,3],[172,2,172,3],[173,2,173,3],[142,2,142,3],[143,2,143,3],[155,1,155,3],[156,2,156,3],[157,2,157,3],[158,2,158,3]]}
[]
[]
[null,"6.1 - Competências e experiências",null,null,null,null,"6.1"]
[]
[null,"6.1.1 - Disponibilidade das competências e experiências em resiliência a catástrofes – identificação dos riscos, mitigação, planeamento, resposta  e resposta pós-evento\n",null,null,null,null,"6.1.1"]
[null,"Pergunta","Comentários"]
[]
[null,"Response","Provide means of verification (explanation and evidence)"]
[null,null,null,null,null,{"$f":"IF(E9=1,TRUE,FALSE)","v":false}]
[null,null,null,null,null,{"$f":"IF(E9=2,TRUE,FALSE)","v":false}]
[null,null,null,null,null,{"$f":"IF(E9=3,TRUE,FALSE)","v":false}]
[null,null,null,null,null,{"$f":"IF(E9=4,TRUE,FALSE)","v":false}]
[null,null,null,null,null,{"$f":"IF(E9=5,TRUE,FALSE)","v":false}]
[null,null,null,null,null,{"$f":"IF(E9=6,TRUE,FALSE)","v":false}]
[null,"Ações para alcançar a máxima resiliência","Instituição responsável","Timescale"]
[]
[]
[null,"6.1.2 - Ligações com o setor privado",null,null,null,null,"6.1.2"]
[null,"Pergunta","Comentários"]
[]
[null,"Resposta","Fornecer meios de verificação (explicação e evidência)"]
[null,null,null,null,null,{"$f":"IF(E22=1,TRUE,FALSE)","v":false}]
[null,null,null,null,null,{"$f":"IF(E22=2,TRUE,FALSE)","v":false}]
[null,null,null,null,null,{"$f":"IF(E22=3,TRUE,FALSE)","v":false}]
[null,null,null,null,null,{"$f":"IF(E22=4,TRUE,FALSE)","v":false}]
[null,null,null,null,null,{"$f":"IF(E22=5,TRUE,FALSE)","v":false}]
[null,null,null,null,null,{"$f":"IF(E22=6,TRUE,FALSE)","v":false}]
[null,"Ações para alcançar a máxima resiliência","Instituição responsável","Prazo"]
[]
[]
[null,"6.1.3 - Envolvimento do sector dos seguros",null,null,null,null,"6.1.3"]
[null,"Pergunta","Comentários"]
[]
[null,"Response","Provide means of verification (explanation and evidence)"]
[null,null,null,null,null,{"$f":"IF(E35=1,TRUE,FALSE)","v":false}]
[null,null,null,null,null,{"$f":"IF(E35=2,TRUE,FALSE)","v":false}]
[null,null,null,null,null,{"$f":"IF(E35=3,TRUE,FALSE)","v":false}]
[null,null,null,null,null,{"$f":"IF(E35=4,TRUE,FALSE)","v":false}]
[null,null,null,null,null,{"$f":"IF(E35=5,TRUE,FALSE)","v":false}]
[null,null,null,null,null,{"$f":"IF(E35=6,TRUE,FALSE)","v":false}]
[null,"Ações para alcançar a máxima resiliência","Instituição responsável","Prazo"]
[]
[]
[null,"6.1.4 - Ligações com a sociedade civil",null,null,null,null,"6.1.4"]
[null,"Pergunta","Comentários"]
[]
[null,"Resposta","Fornecer meios de verificação (explicação e evidência)"]
[null,null,null,null,null,{"$f":"IF(E48=1,TRUE,FALSE)","v":false}]
[null,null,null,null,null,{"$f":"IF(E48=2,TRUE,FALSE)","v":false}]
[null,null,null,null,null,{"$f":"IF(E48=3,TRUE,FALSE)","v":false}]
[null,null,null,null,null,{"$f":"IF(E48=4,TRUE,FALSE)","v":false}]
[null,null,null,null,null,{"$f":"IF(E48=5,TRUE,FALSE)","v":false}]
[null,null,null,null,null,{"$f":"IF(E48=6,TRUE,FALSE)","v":false}]
[null,"Ações para alcançar a máxima resiliência","Instituição responsável","Prazo"]
[]
[]
[null,"6.2 - Educação pública e sensibilização ",null,null,null,null,"6.2"]
[]
[null,"6.2.1 - Exposição do público a envio de mensagens e materiais da educação e sensibilização\n",null,null,null,null,"6.2.1"]
[null,"Pergunta","Comentários"]
[]
[null,"Response","Provide means of verification (explanation and evidence)"]
[null,null,null,null,null,{"$f":"IF(E63=1,TRUE,FALSE)","v":false}]
[null,null,null,null,null,{"$f":"IF(E63=2,TRUE,FALSE)","v":false}]
[null,null,null,null,null,{"$f":"IF(E63=3,TRUE,FALSE)","v":false}]
[null,null,null,null,null,{"$f":"IF(E63=4,TRUE,FALSE)","v":false}]
[null,null,null,null,null,{"$f":"IF(E63=5,TRUE,FALSE)","v":false}]
[null,null,null,null,null,{"$f":"IF(E63=6,TRUE,FALSE)","v":false}]
[null,"Ações para alcançar a máxima resiliência","Instituição responsável","Prazo"]
[]
[]
[null,"6.2.1.1 - Exposição do público a envio de mensagens e materiais da educação e sensibilização\n",null,null,null,null,"6.2.1.1"]
[null,"Pergunta","Comentários"]
[]
[null,"Resposta","Fornecer meios de verificação (explicação e evidência)"]
[null,null,null,null,null,{"$f":"IF(E76=1,TRUE,FALSE)","v":false}]
[null,null,null,null,null,{"$f":"IF(E76=2,TRUE,FALSE)","v":false}]
[null,null,null,null,null,{"$f":"IF(E76=3,TRUE,FALSE)","v":false}]
[null,null,null,null,null,{"$f":"IF(E76=4,TRUE,FALSE)","v":false}]
[null,null,null,null,null,{"$f":"IF(E76=5,TRUE,FALSE)","v":false}]
[null,null,null,null,null,{"$f":"IF(E76=6,TRUE,FALSE)","v":false}]
[null,"Ações para alcançar a máxima resiliência","Instituição responsável","Prazo"]
[]
[]
[null,"6.3 - Captura, partilha e publicação dos dados",null,null,null,null,"6.3"]
[]
[null,"6.3.1 - Medida em que os dados na posição da resiliência da cidade  são partilhados com as outras organizações envolvidas com a resiliência da cidade\n",null,null,null,null,"6.3.1"]
[null,"Pergunta","Comentários"]
[]
[null,"Response","Provide means of verification (explanation and evidence)"]
[null,null,null,null,null,{"$f":"IF(E91=1,TRUE,FALSE)","v":false}]
[null,null,null,null,null,{"$f":"IF(E91=2,TRUE,FALSE)","v":false}]
[null,null,null,null,null,{"$f":"IF(E91=3,TRUE,FALSE)","v":false}]
[null,null,null,null,null,{"$f":"IF(E91=4,TRUE,FALSE)","v":false}]
[null,null,null,null,null,{"$f":"IF(E91=5,TRUE,FALSE)","v":false}]
[null,null,null,null,null,{"$f":"IF(E91=6,TRUE,FALSE)","v":false}]
[null,"Ações para alcançar a máxima resiliência","Instituição responsável","Prazo"]
[]
[]
[null,"6.3.2 - Medida em que os dados na posição da resiliência da cidade estáo partilhados comas organizações comunitárias e o público\n",null,null,null,null,"6.3.2"]
[null,"Pergunta","Comentários"]
[]
[null,"Response","Provide means of verification (explanation and evidence)"]
[null,null,null,null,null,{"$f":"IF(E104=1,TRUE,FALSE)","v":false}]
[null,null,null,null,null,{"$f":"IF(E104=2,TRUE,FALSE)","v":false}]
[null,null,null,null,null,{"$f":"IF(E104=3,TRUE,FALSE)","v":false}]
[null,null,null,null,null,{"$f":"IF(E104=4,TRUE,FALSE)","v":false}]
[null,null,null,null,null,{"$f":"IF(E104=5,TRUE,FALSE)","v":false}]
[null,null,null,null,null,{"$f":"IF(E104=6,TRUE,FALSE)","v":false}]
[null,"Ações para alcançar a máxima resiliência","Instituição responsável","Prazo"]
[]
[]
[null,"6.4 - Realização de Formação",null,null,null,null,"6.4"]
[]
[null,"6.4.1 - Disponibilidade, introdução de formação centrada no Risco e Resiliência  (Formação Profissional)\n",null,null,null,null,"6.4.1"]
[null,"Pergunta","Comentários"]
[]
[null,"Resposta","Fornecer meios de verificação (explicação e evidência)"]
[null,null,null,null,null,{"$f":"IF(E119=1,TRUE,FALSE)","v":false}]
[null,null,null,null,null,{"$f":"IF(E119=2,TRUE,FALSE)","v":false}]
[null,null,null,null,null,{"$f":"IF(E119=3,TRUE,FALSE)","v":false}]
[null,null,null,null,null,{"$f":"IF(E119=4,TRUE,FALSE)","v":false}]
[null,null,null,null,null,{"$f":"IF(E119=5,TRUE,FALSE)","v":false}]
[null,null,null,null,null,{"$f":"IF(E119=6,TRUE,FALSE)","v":false}]
[null,"Ações para alcançar a máxima resiliência","Instituição responsável","Prazo"]
[]
[]
[null,"6.4.1.1 - Disponibilidade, introdução de formação centrada no Risco e Resiliência  (Formação Profissional)\n",null,null,null,null,"6.4.1.1"]
[null,"Pergunta","Comentários"]
[]
[null,"Resposta","Fornecer meios de verificação (explicação e evidência)"]
[null,null,null,null,null,{"$f":"IF(E132=1,TRUE,FALSE)","v":false}]
[null,null,null,null,null,{"$f":"IF(E132=2,TRUE,FALSE)","v":false}]
[null,null,null,null,null,{"$f":"IF(E132=3,TRUE,FALSE)","v":false}]
[null,null,null,null,null,{"$f":"IF(E132=4,TRUE,FALSE)","v":false}]
[null,null,null,null,null,{"$f":"IF(E132=5,TRUE,FALSE)","v":false}]
[null,null,null,null,null,{"$f":"IF(E132=6,TRUE,FALSE)","v":false}]
[null,"Ações para alcançar a máxima resiliência","Instituição responsável","Prazo"]
[]
[]
[null,"6.4.2 - Sistema / processo para atualização de formação relevante",null,null,null,null,"6.4.2"]
[null,"Pergunta","Comentários"]
[]
[null,"Resposta","Fornecer meios de verificação (explicação e evidência)"]
[null,null,null,null,null,{"$f":"IF(E145=1,TRUE,FALSE)","v":false}]
[null,null,null,null,null,{"$f":"IF(E145=2,TRUE,FALSE)","v":false}]
[null,null,null,null,null,{"$f":"IF(E145=3,TRUE,FALSE)","v":false}]
[null,null,null,null,null,{"$f":"IF(E145=4,TRUE,FALSE)","v":false}]
[null,null,null,null,null,{"$f":"IF(E145=5,TRUE,FALSE)","v":false}]
[null,null,null,null,null,{"$f":"IF(E145=6,TRUE,FALSE)","v":false}]
[null,"Ações para alcançar a máxima resiliência","Instituição responsável","Prazo"]
[]
[]
[null,"6.5 - Idiomas",null,null,null,null,"6.5"]
[]
[null,"6.5.1 - Acessibilidade da educação e formação para todos os grupos linguísticos na cidade",null,null,null,null,"6.5.1"]
[null,"Pergunta","Comentários"]
[]
[null,"Resposta","Fornecer meios de verificação (explicação e evidência)"]
[null,null,null,null,null,{"$f":"IF(E160=1,TRUE,FALSE)","v":false}]
[null,null,null,null,null,{"$f":"IF(E160=2,TRUE,FALSE)","v":false}]
[null,null,null,null,null,{"$f":"IF(E160=3,TRUE,FALSE)","v":false}]
[null,null,null,null,null,{"$f":"IF(E160=4,TRUE,FALSE)","v":false}]
[null,null,null,null,null,{"$f":"IF(E160=5,TRUE,FALSE)","v":false}]
[null,null,null,null,null,{"$f":"IF(E160=6,TRUE,FALSE)","v":false}]
[null,"Ações para alcançar a máxima resiliência","Instituição responsável","Prazo"]
[]
[]
[null,"6.6 - Aprender com os outros",null,null,null,null,"6.6"]
[]
[null,"6.6.1 - Esforço existente para aprender com o que outras cidades, estados e países (e empresas) fazem para aumentar a resiliência\n",null,null,null,null,"6.6.1"]
[null,"Pergunta","Comentários"]
[]
[null,"Resposta","Fornecer meios de verificação (explicação e evidência)"]
[null,null,null,null,null,{"$f":"IF(E175=1,TRUE,FALSE)","v":false}]
[null,null,null,null,null,{"$f":"IF(E175=2,TRUE,FALSE)","v":false}]
[null,null,null,null,null,{"$f":"IF(E175=3,TRUE,FALSE)","v":false}]
[null,null,null,null,null,{"$f":"IF(E175=4,TRUE,FALSE)","v":false}]
[null,null,null,null,null,{"$f":"IF(E175=5,TRUE,FALSE)","v":false}]
[null,null,null,null,null,{"$f":"IF(E175=6,TRUE,FALSE)","v":false}]
[null,"Ações para alcançar a máxima resiliência","Instituição responsável","Prazo"]

{"sheet":"E07","index":9,"n_rows":139,"n_cols":7,"rows_kept":139,"cut":false,"hidden":false,"merged":[[18,2,18,3],[131,2,136,3],[118,2,123,3],[8,2,13,3],[21,2,26,3],[34,2,39,3],[49,2,54,3],[62,2,67,3],[77,2,82,3],[90,2,95,3],[105,2,110,3],[59,2,59,3],[19,2,19,3],[20,2,20,3],[30,1,30,3],[31,2,31,3],[4,1,4,3],[5,2,5,3],[6,2,6,3],[7,2,7,3],[17,1,17,3],[32,2,32,3],[33,2,33,3],[45,1,45,3],[46,2,46,3],[47,2,47,3],[48,2,48,3],[58,1,58,3],[102,2,102,3],[60,2,60,3],[61,2,61,3],[73,1,73,3],[74,2,74,3],[75,2,75,3],[76,2,76,3],[86,1,86,3],[87,2,87,3],[88,2,88,3],[89,2,89,3],[101,1,101,3],[127,1,127,3],[128,2,128,3],[129,2,129,3],[130,2,130,3],[103,2,103,3],[104,2,104,3],[114,1,114,3],[115,2,115,3],[116,2,116,3],[117,2,117,3]]}
[]
[]
[null,"7.1 - Organizações comunitárias ou de “base”",null,null,null,null,"7.1"]
[null,null,null,null,null,null,""]
[null,"7.1.1 - Cobertura da (s) organização (ões) comunitária (s) ou de base em toda a cidade",null,null,null,null,"7.1.1"]
[null,"Pergunta","Comentários",null,null,null,""]
[null,null,null,null,null,null,""]
[null,"Resposta","Fornecer meios de verificação (explicação e evidência)",null,null,null,""]
[null,null,null,null,null,{"$f":"IF(E9=1,TRUE,FALSE)","v":false},""]
[null,null,null,null,null,{"$f":"IF(E9=2,TRUE,FALSE)","v":false},""]
[null,null,null,null,null,{"$f":"IF(E9=3,TRUE,FALSE)","v":false},""]
[null,null,null,null,null,{"$f":"IF(E9=4,TRUE,FALSE)","v":false},""]
[null,null,null,null,null,{"$f":"IF(E9=5,TRUE,FALSE)","v":false},""]
[null,null,null,null,null,{"$f":"IF(E9=6,TRUE,FALSE)","v":false},""]
[null,"Ações para alcançar a máxima resiliência","Instituição responsável","Prazo",null,null,""]
[null,null,null,null,null,null,""]
[null,null,null,null,null,null,""]
[null,"7.1.2 - Eficácia da rede comunitária",null,null,null,null,"7.1.2"]
[null,"Pergunta","Comentários",null,null,null,""]
[null,null,null,null,null,null,""]
[null,"Resposta","Fornecer meios de verificação (explicação e evidência)",null,null,null,""]
[null,null,null,null,null,{"$f":"IF(E22=1,TRUE,FALSE)","v":false},""]
[null,null,null,null,null,{"$f":"IF(E22=2,TRUE,FALSE)","v":false},""]
[null,null,null,null,null,{"$f":"IF(E22=3,TRUE,FALSE)","v":false},""]
[null,null,null,null,null,{"$f":"IF(E22=4,TRUE,FALSE)","v":false},""]
[null,null,null,null,null,{"$f":"IF(E22=5,TRUE,FALSE)","v":false},""]
[null,null,null,null,null,{"$f":"IF(E22=6,TRUE,FALSE)","v":false},""]
[null,"Ações para alcançar a máxima resiliência","Instituição responsável","Prazo",null,null,""]
[null,null,null,null,null,null,""]
[null,null,null,null,null,null,""]
[null,"7.1.2.1 - Eficácia da rede comunitária",null,null,null,null,"7.1.2.1"]
[null,"Pergunta","Comentários",null,null,null,""]
[null,null,null,null,null,null,""]
[null,"Resposta","Fornecer meios de verificação (explicação e evidência)",null,null,null,""]
[null,null,null,null,null,{"$f":"IF(E35=1,TRUE,FALSE)","v":false},""]
[null,null,null,null,null,{"$f":"IF(E35=2,TRUE,FALSE)","v":false},""]
[null,null,null,null,null,{"$f":"IF(E35=3,TRUE,FALSE)","v":false},""]
[null,null,null,null,null,{"$f":"IF(E35=4,TRUE,FALSE)","v":false},""]
[null,null,null,null,null,{"$f":"IF(E35=5,TRUE,FALSE)","v":false},""]
[null,null,null,null,null,{"$f":"IF(E35=6,TRUE,FALSE)","v":false},""]
[null,"Ações para alcançar a máxima resiliência","Instituição responsável","Prazo",null,null,""]
[null,null,null,null,null,null,""]
[null,null,null,null,null,null,""]
[null,"7.2 - Redes Sociais",null,null,null,null,"7.2"]
[null,null,null,null,null,null,""]
[null,"7.2.1 - Conexão social e coesão do bairro",null,null,null,null,"7.2.1"]
[null,"Pergunta","Comentários",null,null,null,""]
[null,null,null,null,null,null,""]
[null,"Resposta","Fornecer meios de verificação (explicação e evidência)",null,null,null,""]
[null,null,null,null,null,{"$f":"IF(E50=1,TRUE,FALSE)","v":false},""]
[null,null,null,null,null,{"$f":"IF(E50=2,TRUE,FALSE)","v":false},""]
[null,null,null,null,null,{"$f":"IF(E50=3,TRUE,FALSE)","v":false},""]
[null,null,null,null,null,{"$f":"IF(E50=4,TRUE,FALSE)","v":false},""]
[null,null,null,null,null,{"$f":"IF(E50=5,TRUE,FALSE)","v":false},""]
[null,null,null,null,null,{"$f":"IF(E50=6,TRUE,FALSE)","v":false},""]
[null,"Ações para alcançar a máxima resiliência","Instituição responsável","Prazo",null,null,""]
[null,null,null,null,null,null,""]
[null,null,null,null,null,null,""]
[null,"7.2.2 - Envolvimento dos grupos vulneráveis da população",null,null,null,null,"7.2.2"]
[null,"Pergunta","Comentários",null,null,null,""]
[null,null,null,null,null,null,""]
[null,"Resposta","Fornecer meios de verificação (explicação e evidência)",null,null,null,""]
[null,null,null,null,null,{"$f":"IF(E63=1,TRUE,FALSE)","v":false},""]
[null,null,null,null,null,{"$f":"IF(E63=2,TRUE,FALSE)","v":false},""]
[null,null,null,null,null,{"$f":"IF(E63=3,TRUE,FALSE)","v":false},""]
[null,null,null,null,null,{"$f":"IF(E63=4,TRUE,FALSE)","v":false},""]
[null,null,null,null,null,{"$f":"IF(E63=5,TRUE,FALSE)","v":false},""]
[null,null,null,null,null,{"$f":"IF(E63=6,TRUE,FALSE)","v":false},""]
[null,"Ações para alcançar a máxima resiliência","Instituição responsável","Prazo",null,null,""]
[null,null,null,null,null,null,""]
[null,null,null,null,null,null,""]
[null,"7.3 - Empregadores do sector privado",null,null,null,null,"7.3"]
[null,null,null,null,null,null,""]
[null,"7.3.1 - Medida em queos empregadores atuam como um canal com funcionários\n",null,null,null,null,"7.3.1"]
[null,"Pergunta","Comentários",null,null,null,""]
[null,null,null,null,null,null,""]
[null,"Resposta","Fornecer meios de verificação (explicação e evidência)",null,null,null,""]
[null,null,null,null,null,{"$f":"IF(E78=1,TRUE,FALSE)","v":false},""]
[null,null,null,null,null,{"$f":"IF(E78=2,TRUE,FALSE)","v":false},""]
[null,null,null,null,null,{"$f":"IF(E78=3,TRUE,FALSE)","v":false},""]
[null,null,null,null,null,{"$f":"IF(E78=4,TRUE,FALSE)","v":false},""]
[null,null,null,null,null,{"$f":"IF(E78=5,TRUE,FALSE)","v":false},""]
[null,null,null,null,null,{"$f":"IF(E78=6,TRUE,FALSE)","v":false},""]
[null,"Ações para alcançar a máxima resiliência","Instituição responsável","Prazo",null,null,""]
[null,null,null,null,null,null,""]
[null,null,null,null,null,null,""]
[null,"7.3.2 - Plano de continuidade de negócios",null,null,null,null,"7.3.2"]
[null,"Pergunta","Comentários",null,null,null,""]
[null,null,null,null,null,null,""]
[null,"Resposta","Fornecer meios de verificação (explicação e evidência)",null,null,null,""]
[null,null,null,null,null,{"$f":"IF(E91=1,TRUE,FALSE)","v":false},""]
[null,null,null,null,null,{"$f":"IF(E91=2,TRUE,FALSE)","v":false},""]
[null,null,null,null,null,{"$f":"IF(E91=3,TRUE,FALSE)","v":false},""]
[null,null,null,null,null,{"$f":"IF(E91=4,TRUE,FALSE)","v":false},""]
[null,null,null,null,null,{"$f":"IF(E91=5,TRUE,FALSE)","v":false},""]
[null,null,null,null,null,{"$f":"IF(E91=6,TRUE,FALSE)","v":false},""]
[null,"Ações para alcançar a máxima resiliência","Instituição responsável","Prazo",null,null,""]
[null,null,null,null,null,null,""]
[null,null,null,null,null,null,""]
[null,"7.4 - Técnicas do envolvimento do cidadão",null,null,null,null,"7.4"]
[null,null,null,null,null,null,""]
[null,"7.4.1 - Frequência do envolvimento",null,null,null,null,"7.4.1"]
[null,"Pergunta","Comentários",null,null,null,""]
[null,null,null,null,null,null,""]
[null,"Resposta","Fornecer meios de verificação (explicação e evidência)",null,null,null,""]
[null,null,null,null,null,{"$f":"IF(E106=1,TRUE,FALSE)","v":false},""]
[null,null,null,null,null,{"$f":"IF(E106=2,TRUE,FALSE)","v":false},""]
[null,null,null,null,null,{"$f":"IF(E106=3,TRUE,FALSE)","v":false},""]
[null,null,null,null,null,{"$f":"IF(E106=4,TRUE,FALSE)","v":false},""]
[null,null,null,null,null,{"$f":"IF(E106=5,TRUE,FALSE)","v":false},""]
[null,null,null,null,null,{"$f":"IF(E106=6,TRUE,FALSE)","v":false},""]
[null,"Ações para alcançar a máxima resiliência","Instituição responsável","Prazo",null,null,""]
[null,null,null,null,null,null,""]
[null,null,null,null,null,null,""]
[null,"7.4.2 - Uso dos “sistemas de envolvimento” móveis e e-mail para permitir que os cidadãos possam receber e dar atualizações antes e após uma catástrofe",null,null,null,null,"7.4.2"]
[null,"Pergunta","Comentários",null,null,null,""]
[null,null,null,null,null,null,""]
[null,"Resposta","Fornecer meios de verificação (explicação e evidência)",null,null,null,""]
[null,null,null,null,null,{"$f":"IF(E119=1,TRUE,FALSE)","v":false},""]
[null,null,null,null,null,{"$f":"IF(E119=2,TRUE,FALSE)","v":false},""]
[null,null,null,null,null,{"$f":"IF(E119=3,TRUE,FALSE)","v":false},""]
[null,null,null,null,null,{"$f":"IF(E119=4,TRUE,FALSE)","v":false},""]
[null,null,null,null,null,{"$f":"IF(E119=5,TRUE,FALSE)","v":false},""]
[null,null,null,null,null,{"$f":"IF(E119=6,TRUE,FALSE)","v":false},""]
[null,"Ações para alcançar a máxima resiliência","Instituição responsável","Prazo",null,null,""]
[null,null,null,null,null,null,""]
[null,null,null,null,null,null,""]
[null,"7.4.3 - Validação da eficácia da educação",null,null,null,null,"7.4.3"]
[null,"Pergunta","Comentários",null,null,null,""]
[null,null,null,null,null,null,""]
[null,"Resposta","Fornecer meios de verificação (explicação e evidência)",null,null,null,""]
[null,null,null,null,null,{"$f":"IF(E132=1,TRUE,FALSE)","v":false},""]
[null,null,null,null,null,{"$f":"IF(E132=2,TRUE,FALSE)","v":false},""]
[null,null,null,null,null,{"$f":"IF(E132=3,TRUE,FALSE)","v":false},""]
[null,null,null,null,null,{"$f":"IF(E132=4,TRUE,FALSE)","v":false},""]
[null,null,null,null,null,{"$f":"IF(E132=5,TRUE,FALSE)","v":false},""]
[null,null,null,null,null,{"$f":"IF(E132=6,TRUE,FALSE)","v":false},""]
[null,"Ações para alcançar a máxima resiliência","Instituição responsável","Prazo",null,null,""]
[null,null,null,null,null,null,""]

{"sheet":"E08","index":10,"n_rows":452,"n_cols":7,"rows_kept":452,"cut":false,"hidden":false,"merged":[[19,2,19,3],[20,2,20,3],[32,1,32,3],[33,2,33,3],[34,2,34,3],[35,2,35,3],[4,1,4,3],[5,2,5,3],[6,2,6,3],[7,2,7,3],[17,1,17,3],[18,2,18,3],[60,2,60,3],[61,2,61,3],[73,1,73,3],[74,2,74,3],[75,2,75,3],[76,2,76,3],[45,1,45,3],[46,2,46,3],[47,2,47,3],[48,2,48,3],[58,1,58,3],[59,2,59,3],[101,2,101,3],[102,2,102,3],[115,2,115,3],[116,2,116,3],[117,2,117,3],[86,1,86,3],[87,2,87,3],[88,2,88,3],[89,2,89,3],[99,1,99,3],[100,2,100,3],[114,1,114,2],[183,2,183,3],[184,2,184,3],[194,1,194,2],[195,2,195,3],[196,2,196,3],[197,2,197,3],[168,1,168,3],[169,2,169,3],[170,2,170,3],[171,2,171,3],[181,1,181,3],[182,2,182,3],[222,2,222,3],[223,2,223,3],[233,1,233,2],[234,2,234,3],[235,2,235,3],[236,2,236,3],[207,1,207,2],[208,2,208,3],[209,2,209,3],[210,2,210,3],[220,1,220,2],[221,2,221,3],[211,2,216,3],[275,2,275,3],[276,2,276,3],[277,2,277,3],[246,1,246,3],[247,2,247,3],[248,2,248,3],[249,2,249,3],[261,1,261,3],[262,2,262,3],[343,2,343,3],[344,2,344,3],[356,1,356,3],[357,2,357,3],[358,2,358,3],[359,2,359,3],[345,2,350,3],[328,1,328,3],[329,2,329,3],[330,2,330,3],[331,2,331,3],[341,1,341,3],[342,2,342,3],[332,2,337,3],[398,2,398,3],[399,2,399,3],[400,2,400,3],[369,1,369,3],[370,2,370,3],[371,2,371,3],[372,2,372,3],[382,1,382,3],[383,2,383,3],[77,2,82,3],[62,2,67,3],[49,2,54,3],[36,2,41,3],[21,2,26,3],[8,2,13,3],[157,2,162,3],[144,2,149,3],[131,2,136,3],[118,2,123,3],[103,2,108,3],[90,2,95,3],[142,2,142,3],[143,2,143,3],[153,1,153,2],[154,2,154,3],[155,2,155,3],[156,2,156,3],[127,1,127,2],[128,2,128,3],[129,2,129,3],[130,2,130,3],[140,1,140,2],[141,2,141,3],[198,2,203,3],[185,2,190,3],[172,2,177,3],[319,2,324,3],[306,2,311,3],[291,2,296,3],[278,2,283,3],[265,2,270,3],[250,2,255,3],[304,2,304,3],[305,2,305,3],[315,1,315,3],[316,2,316,3],[317,2,317,3],[318,2,318,3],[287,1,287,3],[288,2,288,3],[289,2,289,3],[290,2,290,3],[302,1,302,3],[303,2,303,3],[263,2,263,3],[264,2,264,3],[274,1,274,3],[360,2,365,3],[444,2,449,3],[431,2,436,3],[416,2,421,3],[401,2,406,3],[386,2,391,3],[373,2,378,3],[237,2,242,3],[224,2,229,3],[429,2,429,3],[430,2,430,3],[440,1,440,3],[441,2,441,3],[442,2,442,3],[443,2,443,3],[412,1,412,3],[413,2,413,3],[414,2,414,3],[415,2,415,3],[427,1,427,3],[428,2,428,3],[384,2,384,3],[385,2,385,3],[397,1,397,3]]}
[]
[]
[null,"8.1 - Infraestrutura de proteção ",null,null,null,null,"8.1"]
[null,null,null,null,null,null,""]
[null,"8.1.1 - Adequação da infraestrutura de proteção (Ecossistemas podem oferecer uma barreira de proteção natural - ver Principio 5)\n",null,null,null,null,"8.1.1"]
[null,"Pergunta","Comentários",null,null,null,""]
[null,null,null,null,null,null,""]
[null,"Resposta","Fornecer meios de verificação (explicação e evidência)",null,null,null,""]
[null,null,null,null,null,{"$f":"IF(E9=1,TRUE,FALSE)","v":false},""]
[null,null,null,null,null,{"$f":"IF(E9=2,TRUE,FALSE)","v":false},""]
[null,null,null,null,null,{"$f":"IF(E9=3,TRUE,FALSE)","v":false},""]
[null,null,null,null,null,{"$f":"IF(E9=4,TRUE,FALSE)","v":false},""]
[null,null,null,null,null,{"$f":"IF(E9=5,TRUE,FALSE)","v":false},""]
[null,null,null,null,null,{"$f":"IF(E9=6,TRUE,FALSE)","v":false},""]
[null,"Ações para alcançar a máxima resiliência","Instituição responsável","Prazo",null,null,""]
[null,null,null,null,null,null,""]
[null,null,null,null,null,null,""]
[null,"8.1.2 - Eficácia da manutenção \n",null,null,null,null,"8.1.2"]
[null,"Pergunta","Comentários",null,null,null,""]
[null,null,null,null,null,null,""]
[null,"Resposta","Fornecer meios de verificação (explicação e evidência)",null,null,null,""]
[null,null,null,null,null,{"$f":"IF(E22=1,TRUE,FALSE)","v":false},""]
[null,null,null,null,null,{"$f":"IF(E22=2,TRUE,FALSE)","v":false},""]
[null,null,null,null,null,{"$f":"IF(E22=3,TRUE,FALSE)","v":false},""]
[null,null,null,null,null,{"$f":"IF(E22=4,TRUE,FALSE)","v":false},""]
[null,null,null,null,null,{"$f":"IF(E22=5,TRUE,FALSE)","v":false},""]
[null,null,null,null,null,{"$f":"IF(E22=6,TRUE,FALSE)","v":false},""]
[null,"Ações para alcançar a máxima resiliência","Instituição responsável","Prazo",null,null,""]
[null,null,null,null,null,null,""]
[null,null,null,null,null,null,""]
[null,"8.2 - Saneamento da água",null,null,null,null,"8.2"]
[null,null,null,null,null,null,""]
[null,"8.2.1 - Dias de atendimento ao cliente em risco da perda",null,null,null,null,"8.2.1"]
[null,"Pergunta","Comentários",null,null,null,""]
[null,null,null,null,null,null,""]
[null,"Resposta","Fornecer meios de verificação (explicação e evidência)",null,null,null,""]
[null,null,null,null,null,{"$f":"IF(E37=1,TRUE,FALSE)","v":false},""]
[null,null,null,null,null,{"$f":"IF(E37=2,TRUE,FALSE)","v":false},""]
[null,null,null,null,null,{"$f":"IF(E37=3,TRUE,FALSE)","v":false},""]
[null,null,null,null,null,{"$f":"IF(E37=4,TRUE,FALSE)","v":false},""]
[null,null,null,null,null,{"$f":"IF(E37=5,TRUE,FALSE)","v":false},""]
[null,null,null,null,null,{"$f":"IF(E37=6,TRUE,FALSE)","v":false},""]
[null,"Ações para alcançar a máxima resiliência","Instituição responsável","Prazo",null,null,""]
[null,null,null,null,null,null,""]
[null,null,null,null,null,null,""]
[null,"8.2.2 - Dias de serviço designado por ativos críticos (por exemplo: serviço para hospitais ou outros ativos críticos) em risco de perda por falta da água ou saneamento",null,null,null,null,"8.2.2"]
[null,"Pergunta","Comentários",null,null,null,""]
[null,null,null,null,null,null,""]
[null,"Resposta","Fornecer meios de verificação (explicação e evidência)",null,null,null,""]
[null,null,null,null,null,{"$f":"IF(E50=1,TRUE,FALSE)","v":false},""]
[null,null,null,null,null,{"$f":"IF(E50=2,TRUE,FALSE)","v":false},""]
[null,null,null,null,null,{"$f":"IF(E50=3,TRUE,FALSE)","v":false},""]
[null,null,null,null,null,{"$f":"IF(E50=4,TRUE,FALSE)","v":false},""]
[null,null,null,null,null,{"$f":"IF(E50=5,TRUE,FALSE)","v":false},""]
[null,null,null,null,null,{"$f":"IF(E50=6,TRUE,FALSE)","v":false},""]
[null,"Ações para alcançar a máxima resiliência","Instituição responsável","Prazo",null,null,""]
[null,null,null,null,null,null,""]
[null,null,null,null,null,null,""]
[null,"8.2.3 - Custo da restauração do serviço",null,null,null,null,"8.2.3"]
[null,"Pergunta","Comentários",null,null,null,""]
[null,null,null,null,null,null,""]
[null,"Resposta","Fornecer meios de verificação (explicação e evidência)",null,null,null,""]
[null,null,null,null,null,{"$f":"IF(E63=1,TRUE,FALSE)","v":false},""]
[null,null,null,null,null,{"$f":"IF(E63=2,TRUE,FALSE)","v":false},""]
[null,null,null,null,null,{"$f":"IF(E63=3,TRUE,FALSE)","v":false},""]
[null,null,null,null,null,{"$f":"IF(E63=4,TRUE,FALSE)","v":false},""]
[null,null,null,null,null,{"$f":"IF(E63=5,TRUE,FALSE)","v":false},""]
[null,null,null,null,null,{"$f":"IF(E63=6,TRUE,FALSE)","v":false},""]
[null,"Ações para alcançar a máxima resiliência","Instituição responsável","Prazo",null,null,""]
[null,null,null,null,null,null,""]
[null,null,null,null,null,null,""]
[null,"8.3 - Energia - Electricidade",null,null,null,null,"8.3"]
[null,null,null,null,null,null,""]
[null,"8.3.1 - Dias de atendimento ao cliente em risco de perda",null,null,null,null,"8.3.1"]
[null,"Pergunta","Comentários",null,null,null,""]
[null,null,null,null,null,null,""]
[null,"Resposta","Fornecer meios de verificação (explicação e evidência)",null,null,null,""]
[null,null,null,null,null,{"$f":"IF(E78=1,TRUE,FALSE)","v":false},""]
[null,null,null,null,null,{"$f":"IF(E78=2,TRUE,FALSE)","v":false},""]
[null,null,null,null,null,{"$f":"IF(E78=3,TRUE,FALSE)","v":false},""]
[null,null,null,null,null,{"$f":"IF(E78=4,TRUE,FALSE)","v":false},""]
[null,null,null,null,null,{"$f":"IF(E78=5,TRUE,FALSE)","v":false},""]
[null,null,null,null,null,{"$f":"IF(E78=6,TRUE,FALSE)","v":false},""]
[null,"Ações para alcançar a máxima resiliência","Instituição responsável","Prazo",null,null,""]
[null,null,null,null,null,null,""]
[null,null,null,null,null,null,""]
[null,"8.3.2 - Dias do serviço designado aos ativos críticos em risco de perda por causa da insuficiência energética",null,null,null,null,"8.3.2"]
[null,"Pergunta","Comentários",null,null,null,""]
[null,null,null,null,null,null,""]
[null,"Resposta","Fornecer meios de verificação (explicação e evidência)",null,null,null,""]
[null,null,null,null,null,{"$f":"IF(E91=1,TRUE,FALSE)","v":false},""]
[null,null,null,null,null,{"$f":"IF(E91=2,TRUE,FALSE)","v":false},""]
[null,null,null,null,null,{"$f":"IF(E91=3,TRUE,FALSE)","v":false},""]
[null,null,null,null,null,{"$f":"IF(E91=4,TRUE,FALSE)","v":false},""]
[null,null,null,null,null,{"$f":"IF(E91=5,TRUE,FALSE)","v":false},""]
[null,null,null,null,null,{"$f":"IF(E91=6,TRUE,FALSE)","v":false},""]
[null,"Ações para alcançar a máxima resiliência","Instituição responsável","Prazo",null,null,""]
[null,null,null,null,null,null,""]
[null,null,null,null,null,null,""]
[null,"8.3.3 - Custo de restauração",null,null,null,null,"8.3.3"]
[null,"Pergunta","Comentários",null,null,null,""]
[null,null,null,null,null,null,""]
[null,"Resposta","Fornecer meios de verificação (explicação e evidência)",null,null,null,""]
[null,null,null,null,null,{"$f":"IF(E104=1,TRUE,FALSE)","v":false},""]
[null,null,null,null,null,{"$f":"IF(E104=2,TRUE,FALSE)","v":false},""]
[null,null,null,null,null,{"$f":"IF(E104=3,TRUE,FALSE)","v":false},""]
[null,null,null,null,null,{"$f":"IF(E104=4,TRUE,FALSE)","v":false},""]
[null,null,null,null,null,{"$f":"IF(E104=5,TRUE,FALSE)","v":false},""]
[null,null,null,null,null,{"$f":"IF(E104=6,TRUE,FALSE)","v":false},""]
[null,"Ações para alcançar a máxima resiliência","Instituição responsável","Prazo",null,null,""]
[null,null,null,null,null,null,""]
[null,null,null,null,null,null,""]
[null,"8.4 - Energia - gás",null,null,null,null,"8.4"]
[null,null,null,null,null,null,""]
[null,"8.4.1 - Segurança e integridade do sistema de gás (se aplicável)",null,null,null,null,"8.4.1"]
[null,"Pergunta","Comentários",null,null,null,""]
[null,null,null,null,null,null,""]
[null,"Resposta","Fornecer meios de verificação (explicação e evidência)",null,null,null,""]
[null,null,null,null,null,{"$f":"IF(E119=1,TRUE,FALSE)","v":false},""]
[null,null,null,null,null,{"$f":"IF(E119=2,TRUE,FALSE)","v":false},""]
[null,null,null,null,null,{"$f":"IF(E119=3,TRUE,FALSE)","v":false},""]
[null,null,null,null,null,{"$f":"IF(E119=4,TRUE,FALSE)","v":false},""]
[null,null,null,null,null,{"$f":"IF(E119=5,TRUE,FALSE)","v":false},""]
[null,null,null,null,null,{"$f":"IF(E119=6,TRUE,FALSE)","v":false},""]
[null,"Ações para alcançar a máxima resiliência","Instituição responsável","Prazo",null,null,""]
[null,null,null,null,null,null,""]
[null,null,null,null,null,null,""]
[null,"8.4.2 - Dias de atendimento ao cliente em risco de perda",null,null,null,null,"8.4.2"]
[null,"Pergunta","Comentários",null,null,null,""]
[null,null,null,null,null,null,""]
[null,"Resposta","Fornecer meios de verificação (explicação e evidência)",null,null,null,""]
[null,null,null,null,null,{"$f":"IF(E132=1,TRUE,FALSE)","v":false},""]
[null,null,null,null,null,{"$f":"IF(E132=2,TRUE,FALSE)","v":false},""]
[null,null,null,null,null,{"$f":"IF(E132=3,TRUE,FALSE)","v":false},""]
[null,null,null,null,null,{"$f":"IF(E132=4,TRUE,FALSE)","v":false},""]
[null,null,null,null,null,{"$f":"IF(E132=5,TRUE,FALSE)","v":false},""]
[null,null,null,null,null,{"$f":"IF(E132=6,TRUE,FALSE)","v":false},""]
[null,"Ações para alcançar a máxima resiliência","Instituição responsável","Prazo",null,null,""]
[null,null,null,null,null,null,""]
[null,null,null,null,null,null,""]
[null,"8.4.3 - Dias do serviço designado aos ativos críticos em risco de perda por causa da falha no fornecimento de gás\n",null,null,null,null,"8.4.3"]
[null,"Pergunta","Comentários",null,null,null,""]
[null,null,null,null,null,null,""]
[null,"Resposta","Fornecer meios de verificação (explicação e evidência)",null,null,null,""]
[null,null,null,null,null,{"$f":"IF(E145=1,TRUE,FALSE)","v":false},""]
[null,null,null,null,null,{"$f":"IF(E145=2,TRUE,FALSE)","v":false},""]
[null,null,null,null,null,{"$f":"IF(E145=3,TRUE,FALSE)","v":false},""]
[null,null,null,null,null,{"$f":"IF(E145=4,TRUE,FALSE)","v":false},""]
[null,null,null,null,null,{"$f":"IF(E145=5,TRUE,FALSE)","v":false},""]
[null,null,null,null,null,{"$f":"IF(E145=6,TRUE,FALSE)","v":false},""]
[null,"Ações para alcançar a máxima resiliência","Instituição responsável","Prazo",null,null,""]
[null,null,null,null,null,null,""]
[null,null,null,null,null,null,""]
[null,"8.4.4 - Custo da restauração do serviço",null,null,null,null,"8.4.4"]
[null,"Pergunta","Comentários",null,null,null,""]
[null,null,null,null,null,null,""]
[null,"Resposta","Fornecer meios de verificação (explicação e evidência)",null,null,null,""]
[null,null,null,null,null,{"$f":"IF(E158=1,TRUE,FALSE)","v":false},""]
[null,null,null,null,null,{"$f":"IF(E158=2,TRUE,FALSE)","v":false},""]
[null,null,null,null,null,{"$f":"IF(E158=3,TRUE,FALSE)","v":false},""]
[null,null,null,null,null,{"$f":"IF(E158=4,TRUE,FALSE)","v":false},""]
[null,null,null,null,null,{"$f":"IF(E158=5,TRUE,FALSE)","v":false},""]
[null,null,null,null,null,{"$f":"IF(E158=6,TRUE,FALSE)","v":false},""]
[null,"Ações para alcançar a máxima resiliência","Instituição responsável","Prazo",null,null,""]
[null,null,null,null,null,null,""]
[null,null,null,null,null,null,""]
[null,"8.5 - Transportes",null,null,null,null,"8.5"]
[null,null,null,null,null,null,""]
[null,"8.5.1 - Estrada - serviço do sistema rodoviário em risco da perda",null,null,null,null,"8.5.1"]
[null,"Pergunta","Comentários",null,null,null,""]
[null,null,null,null,null,null,""]
[null,"Resposta","Fornecer meios de verificação (explicação e evidência)",null,null,null,""]
[null,null,null,null,null,{"$f":"IF(E173=1,TRUE,FALSE)","v":false},""]
[null,null,null,null,null,{"$f":"IF(E173=2,TRUE,FALSE)","v":false},""]
[null,null,null,null,null,{"$f":"IF(E173=3,TRUE,FALSE)","v":false},""]
[null,null,null,null,null,{"$f":"IF(E173=4,TRUE,FALSE)","v":false},""]
[null,null,null,null,null,{"$f":"IF(E173=5,TRUE,FALSE)","v":false},""]
[null,null,null,null,null,{"$f":"IF(E173=6,TRUE,FALSE)","v":false},""]
[null,"Ações para alcançar a máxima resiliência","Instituição responsável","Prazo",null,null,""]
[null,null,null,null,null,null,""]
[null,null,null,null,null,null,""]
[null,"8.5.2 - Estrada - sobrevivência das rotas críticas de acesso e evacuação",null,null,null,null,"8.5.2"]
[null,"Pergunta","Comentários",null,null,null,""]
[null,null,null,null,null,null,""]
[null,"Resposta","Fornecer meios de verificação (explicação e evidência)",null,null,null,""]
[null,null,null,null,null,{"$f":"IF(E186=1,TRUE,FALSE)","v":false},""]
[null,null,null,null,null,{"$f":"IF(E186=2,TRUE,FALSE)","v":false},""]
[null,null,null,null,null,{"$f":"IF(E186=3,TRUE,FALSE)","v":false},""]
[null,null,null,null,null,{"$f":"IF(E186=4,TRUE,FALSE)","v":false},""]
[null,null,null,null,null,{"$f":"IF(E186=5,TRUE,FALSE)","v":false},""]
[null,null,null,null,null,{"$f":"IF(E186=6,TRUE,FALSE)","v":false},""]
[null,"Ações para alcançar a máxima resiliência","Instituição responsável","Prazo",null,null,""]
[null,null,null,null,null,null,""]
[null,null,null,null,null,null,""]
[null,"8.5.3 - Ferrovia/metro (se aplicável) – serviço do sistema ferroviário em risco da perda",null,null,null,null,"8.5.3"]
[null,"Pergunta","Comentários",null,null,null,""]
[null,null,null,null,null,null,""]
[null,"Resposta","Fornecer meios de verificação (explicação e evidência)",null,null,null,""]
[null,null,null,null,null,{"$f":"IF(E199=1,TRUE,FALSE)","v":false},""]
[null,null,null,null,null,{"$f":"IF(E199=2,TRUE,FALSE)","v":false},""]
[null,null,null,null,null,{"$f":"IF(E199=3,TRUE,FALSE)","v":false},""]
[null,null,null,null,null,{"$f":"IF(E199=4,TRUE,FALSE)","v":false},""]
[null,null,null,null,null,{"$f":"IF(E199=5,TRUE,FALSE)","v":false},""]
[null,null,null,null,null,{"$f":"IF(E199=6,TRUE,FALSE)","v":false},""]
[null,"Ações para alcançar a máxima resiliência","Instituição responsável","Prazo",null,null,""]
[null,null,null,null,null,null,""]
[null,null,null,null,null,null,""]
[null,"8.5.4 - Ar (se aplicável)",null,null,null,null,"8.5.4"]
[null,"Pergunta","Comentários",null,null,null,""]
[null,null,null,null,null,null,""]
[null,"Resposta","Fornecer meios de verificação (explicação e evidência)",null,null,null,""]
[null,null,null,null,null,{"$f":"IF(E212=1,TRUE,FALSE)","v":false},""]
[null,null,null,null,null,{"$f":"IF(E212=2,TRUE,FALSE)","v":false},""]
[null,null,null,null,null,{"$f":"IF(E212=3,TRUE,FALSE)","v":false},""]
[null,null,null,null,null,{"$f":"IF(E212=4,TRUE,FALSE)","v":false},""]
[null,null,null,null,null,{"$f":"IF(E212=5,TRUE,FALSE)","v":false},""]
[null,null,null,null,null,{"$f":"IF(E212=6,TRUE,FALSE)","v":false},""]
[null,"Ações para alcançar a máxima resiliência","Instituição responsável","Prazo",null,null,""]
[null,null,null,null,null,null,""]
[null,null,null,null,null,null,""]
[null,"8.5.5 - Rio / Mar (se aplicável)",null,null,null,null,"8.5.5"]
[null,"Pergunta","Comentários",null,null,null,""]
[null,null,null,null,null,null,""]
[null,"Resposta","Fornecer meios de verificação (explicação e evidência)",null,null,null,""]
[null,null,null,null,null,{"$f":"IF(E225=1,TRUE,FALSE)","v":false},""]
[null,null,null,null,null,{"$f":"IF(E225=2,TRUE,FALSE)","v":false},""]
[null,null,null,null,null,{"$f":"IF(E225=3,TRUE,FALSE)","v":false},""]
[null,null,null,null,null,{"$f":"IF(E225=4,TRUE,FALSE)","v":false},""]
[null,null,null,null,null,{"$f":"IF(E225=5,TRUE,FALSE)","v":false},""]
[null,null,null,null,null,{"$f":"IF(E225=6,TRUE,FALSE)","v":false},""]
[null,"Ações para alcançar a máxima resiliência","Instituição responsável","Prazo",null,null,""]
[null,null,null,null,null,null,""]
[null,null,null,null,null,null,""]
[null,"8.5.6 - Outro transporte público (se aplicável)",null,null,null,null,"8.5.6"]
[null,"Pergunta","Comentários",null,null,null,""]
[null,null,null,null,null,null,""]
[null,"Resposta","Fornecer meios de verificação (explicação e evidência)",null,null,null,""]
[null,null,null,null,null,{"$f":"IF(E238=1,TRUE,FALSE)","v":false},""]
[null,null,null,null,null,{"$f":"IF(E238=2,TRUE,FALSE)","v":false},""]
[null,null,null,null,null,{"$f":"IF(E238=3,TRUE,FALSE)","v":false},""]
[null,null,null,null,null,{"$f":"IF(E238=4,TRUE,FALSE)","v":false},""]
[null,null,null,null,null,{"$f":"IF(E238=5,TRUE,FALSE)","v":false},""]
[null,null,null,null,null,{"$f":"IF(E238=6,TRUE,FALSE)","v":false},""]
[null,"Ações para alcançar a máxima resiliência","Instituição responsável","Prazo",null,null,""]
[null,null,null,null,null,null,""]
[null,null,null,null,null,null,""]
[null,"8.5.7 - Custo de restauração de serviço (todas as rotas de transporte)",null,null,null,null,"8.5.7"]
[null,"Pergunta","Comentários",null,null,null,""]
[null,null,null,null,null,null,""]
[null,"Resposta","Fornecer meios de verificação (explicação e evidência)",null,null,null,""]
[null,null,null,null,null,{"$f":"IF(E251=1,TRUE,FALSE)","v":false},""]
[null,null,null,null,null,{"$f":"IF(E251=2,TRUE,FALSE)","v":false},""]
[null,null,null,null,null,{"$f":"IF(E251=3,TRUE,FALSE)","v":false},""]
[null,null,null,null,null,{"$f":"IF(E251=4,TRUE,FALSE)","v":false},""]
[null,null,null,null,null,{"$f":"IF(E251=5,TRUE,FALSE)","v":false},""]
[null,null,null,null,null,{"$f":"IF(E251=6,TRUE,FALSE)","v":false},""]
[null,"Ações para alcançar a máxima resiliência","Instituição responsável","Prazo",null,null,""]
[null,null,null,null,null,null,""]
[null,null,null,null,null,null,""]
[null,"8.6 - Comunicações",null,null,null,null,"8.6"]
[null,null,null,null,null,null,""]
[null,"8.6.1 - Dias de serviço em risco de perda",null,null,null,null,"8.6.1"]
[null,"Pergunta","Comentários",null,null,null,""]
[null,null,null,null,null,null,""]
[null,"Resposta","Fornecer meios de verificação (explicação e evidência)",null,null,null,""]
[null,null,null,null,null,{"$f":"IF(E266=1,TRUE,FALSE)","v":false},""]
[null,null,null,null,null,{"$f":"IF(E266=2,TRUE,FALSE)","v":false},""]
[null,null,null,null,null,{"$f":"IF(E266=3,TRUE,FALSE)","v":false},""]
[null,null,null,null,null,{"$f":"IF(E266=4,TRUE,FALSE)","v":false},""]
[null,null,null,null,null,{"$f":"IF(E266=5,TRUE,FALSE)","v":false},""]
[null,null,null,null,null,{"$f":"IF(E266=6,TRUE,FALSE)","v":false},""]
[null,"Ações para alcançar a máxima resiliência","Instituição responsável","Prazo",null,null,""]
[null,null,null,null,null,null,""]
[null,null,null,null,null,null,""]
[null,"8.6.2 - Dias de serviço designado aos ativos críticos em risco de perda por causa da falha de comunicação",null,null,null,null,"8.6.2"]
[null,"Pergunta","Comentários",null,null,null,""]
[null,null,null,null,null,null,""]
[null,"Resposta","Fornecer meios de verificação (explicação e evidência)",null,null,null,""]
[null,null,null,null,null,{"$f":"IF(E279=1,TRUE,FALSE)","v":false},""]
[null,null,null,null,null,{"$f":"IF(E279=2,TRUE,FALSE)","v":false},""]
[null,null,null,null,null,{"$f":"IF(E279=3,TRUE,FALSE)","v":false},""]
[null,null,null,null,null,{"$f":"IF(E279=4,TRUE,FALSE)","v":false},""]
[null,null,null,null,null,{"$f":"IF(E279=5,TRUE,FALSE)","v":false},""]
[null,null,null,null,null,{"$f":"IF(E279=6,TRUE,FALSE)","v":false},""]
[null,"Ações para alcançar a máxima resiliência","Instituição responsável","Prazo",null,null,""]
[null,null,null,null,null,null,""]
[null,null,null,null,null,null,""]
[null,"8.6.3 - Custo de restauração",null,null,null,null,"8.6.3"]
[null,"Pergunta","Comentários",null,null,null,""]
[null,null,null,null,null,null,""]
[null,"Resposta","Fornecer meios de verificação (explicação e evidência)",null,null,null,""]
[null,null,null,null,null,{"$f":"IF(E292=1,TRUE,FALSE)","v":false},""]
[null,null,null,null,null,{"$f":"IF(E292=2,TRUE,FALSE)","v":false},""]
[null,null,null,null,null,{"$f":"IF(E292=3,TRUE,FALSE)","v":false},""]
[null,null,null,null,null,{"$f":"IF(E292=4,TRUE,FALSE)","v":false},""]
[null,null,null,null,null,{"$f":"IF(E292=5,TRUE,FALSE)","v":false},""]
[null,null,null,null,null,{"$f":"IF(E292=6,TRUE,FALSE)","v":false},""]
[null,"Ações para alcançar a máxima resiliência","Instituição responsável","Prazo",null,null,""]
[null,null,null,null,null,null,""]
[null,null,null,null,null,null,""]
[null,"8.7 - Cuidados de saúde",null,null,null,null,"8.7"]
[null,null,null,null,null,null,""]
[null,"8.7.1 - Segurança estrutural e resiliência a catástrofes nos serviços de saúde e emergência (Pessoal / primeiros socorros – ver Principio 9)\n",null,null,null,null,"8.7.1"]
[null,"Pergunta","Comentários",null,null,null,""]
[null,null,null,null,null,null,""]
[null,"Resposta","Fornecer meios de verificação (explicação e evidência)",null,null,null,""]
[null,null,null,null,null,{"$f":"IF(E307=1,TRUE,FALSE)","v":false},""]
[null,null,null,null,null,{"$f":"IF(E307=2,TRUE,FALSE)","v":false},""]
[null,null,null,null,null,{"$f":"IF(E307=3,TRUE,FALSE)","v":false},""]
[null,null,null,null,null,{"$f":"IF(E307=4,TRUE,FALSE)","v":false},""]
[null,null,null,null,null,{"$f":"IF(E307=5,TRUE,FALSE)","v":false},""]
[null,null,null,null,null,{"$f":"IF(E307=6,TRUE,FALSE)","v":false},""]
[null,"Ações para alcançar a máxima resiliência","Instituição responsável","Prazo",null,null,""]
[null,null,null,null,null,null,""]
[null,null,null,null,null,null,""]
[null,"8.7.1.1 - Segurança estrutural e resiliência a catástrofes nos serviços de saúde e emergência (Pessoal / primeiros socorros – ver Principio 9)\n",null,null,null,null,"8.7.1.1"]
[null,"Pergunta","Comentários",null,null,null,""]
[null,null,null,null,null,null,""]
[null,"Resposta","Fornecer meios de verificação (explicação e evidência)",null,null,null,""]
[null,null,null,null,null,{"$f":"IF(E320=1,TRUE,FALSE)","v":false},""]
[null,null,null,null,null,{"$f":"IF(E320=2,TRUE,FALSE)","v":false},""]
[null,null,null,null,null,{"$f":"IF(E320=3,TRUE,FALSE)","v":false},""]
[null,null,null,null,null,{"$f":"IF(E320=4,TRUE,FALSE)","v":false},""]
[null,null,null,null,null,{"$f":"IF(E320=5,TRUE,FALSE)","v":false},""]
[null,null,null,null,null,{"$f":"IF(E320=6,TRUE,FALSE)","v":false},""]
[null,"Ações para alcançar a máxima resiliência","Instituição responsável","Prazo",null,null,""]
[null,null,null,null,null,null,""]
[null,null,null,null,null,null,""]
[null,"8.7.2 - Registros e dados de saúde",null,null,null,null,"8.7.2"]
[null,"Pergunta","Comentários",null,null,null,""]
[null,null,null,null,null,null,""]
[null,"Resposta","Fornecer meios de verificação (explicação e evidência)",null,null,null,""]
[null,null,null,null,null,{"$f":"IF(E333=1,TRUE,FALSE)","v":false},""]
[null,null,null,null,null,{"$f":"IF(E333=2,TRUE,FALSE)","v":false},""]
[null,null,null,null,null,{"$f":"IF(E333=3,TRUE,FALSE)","v":false},""]
[null,null,null,null,null,{"$f":"IF(E333=4,TRUE,FALSE)","v":false},""]
[null,null,null,null,null,{"$f":"IF(E333=5,TRUE,FALSE)","v":false},""]
[null,null,null,null,null,{"$f":"IF(E333=6,TRUE,FALSE)","v":false},""]
[null,"Ações para alcançar a máxima resiliência","Instituição responsável","Prazo",null,null,""]
[null,null,null,null,null,null,""]
[null,null,null,null,null,null,""]
[null,"8.7.3 - Disponibilidade de cuidados de saúde de emergência, incluindo instalações e suprimentos médicos de urgência para necessidades agudas",null,null,null,null,"8.7.3"]
[null,"Pergunta","Comentários",null,null,null,""]
[null,null,null,null,null,null,""]
[null,"Resposta","Fornecer meios de verificação (explicação e evidência)",null,null,null,""]
[null,null,null,null,null,{"$f":"IF(E346=1,TRUE,FALSE)","v":false},""]
[null,null,null,null,null,{"$f":"IF(E346=2,TRUE,FALSE)","v":false},""]
[null,null,null,null,null,{"$f":"IF(E346=3,TRUE,FALSE)","v":false},""]
[null,null,null,null,null,{"$f":"IF(E346=4,TRUE,FALSE)","v":false},""]
[null,null,null,null,null,{"$f":"IF(E346=5,TRUE,FALSE)","v":false},""]
[null,null,null,null,null,{"$f":"IF(E346=6,TRUE,FALSE)","v":false},""]
[null,"Ações para alcançar a máxima resiliência","Instituição responsável","Prazo",null,null,""]
[null,null,null,null,null,null,""]
[null,null,null,null,null,null,""]
[null,"8.8 - Educação",null,null,null,null,"8.8"]
[null,null,null,null,null,null,""]
[null,"8.8.1 - Segurança estrutural das instalações educativas",null,null,null,null,"8.8.1"]
[null,"Pergunta","Comentários",null,null,null,""]
[null,null,null,null,null,null,""]
[null,"Resposta","Fornecer meios de verificação (explicação e evidência)",null,null,null,""]
[null,null,null,null,null,{"$f":"IF(E361=1,TRUE,FALSE)","v":false},""]
[null,null,null,null,null,{"$f":"IF(E361=2,TRUE,FALSE)","v":false},""]
[null,null,null,null,null,{"$f":"IF(E361=3,TRUE,FALSE)","v":false},""]
[null,null,null,null,null,{"$f":"IF(E361=4,TRUE,FALSE)","v":false},""]
[null,null,null,null,null,{"$f":"IF(E361=5,TRUE,FALSE)","v":false},""]
[null,null,null,null,null,{"$f":"IF(E361=6,TRUE,FALSE)","v":false},""]
[null,"Ações para alcançar a máxima resiliência","Instituição responsável","Prazo",null,null,""]
[null,null,null,null,null,null,""]
[null,null,null,null,null,null,""]
[null,"8.8.2 - Perda de horário de ensino",null,null,null,null,"8.8.2"]
[null,"Pergunta","Comentários",null,null,null,""]
[null,null,null,null,null,null,""]
[null,"Resposta","Fornecer meios de verificação (explicação e evidência)",null,null,null,""]
[null,null,null,null,null,{"$f":"IF(E374=1,TRUE,FALSE)","v":false},""]
[null,null,null,null,null,{"$f":"IF(E374=2,TRUE,FALSE)","v":false},""]
[null,null,null,null,null,{"$f":"IF(E374=3,TRUE,FALSE)","v":false},""]
[null,null,null,null,null,{"$f":"IF(E374=4,TRUE,FALSE)","v":false},""]
[null,null,null,null,null,{"$f":"IF(E374=5,TRUE,FALSE)","v":false},""]
[null,null,null,null,null,{"$f":"IF(E374=6,TRUE,FALSE)","v":false},""]
[null,"Ações para alcançar a máxima resiliência","Instituição responsável","Prazo",null,null,""]
[null,null,null,null,null,null,""]
[null,null,null,null,null,null,""]
[null,"8.8.3 - Dados da educação",null,null,null,null,"8.8.3"]
[null,"Pergunta","Comentários",null,null,null,""]
[null,null,null,null,null,null,""]
[null,"Resposta","Fornecer meios de verificação (explicação e evidência)",null,null,null,""]
[null,null,null,null,null,{"$f":"IF(E387=1,TRUE,FALSE)","v":false},""]
[null,null,null,null,null,{"$f":"IF(E387=2,TRUE,FALSE)","v":false},""]
[null,null,null,null,null,{"$f":"IF(E387=3,TRUE,FALSE)","v":false},""]
[null,null,null,null,null,{"$f":"IF(E387=4,TRUE,FALSE)","v":false},""]
[null,null,null,null,null,{"$f":"IF(E387=5,TRUE,FALSE)","v":false},""]
[null,null,null,null,null,{"$f":"IF(E387=6,TRUE,FALSE)","v":false},""]
[null,"Ações para alcançar a máxima resiliência","Instituição responsável","Prazo",null,null,""]
[null,null,null,null,null,null,""]
[null,null,null,null,null,null,""]
[null,"8.9 - Prisões (observa que a lei e ordem, e outros ativos de primeiro socorro estão incluídos no Principio 9) ",null,null,null,null,"8.9"]
[null,null,null,null,null,null,""]
[null,"8.9.1 - Resiliência a catástrofe do sistema prisional",null,null,null,null,"8.9.1"]
[null,"Pergunta","Comentários",null,null,null,""]
[null,null,null,null,null,null,""]
[null,"Resposta","Fornecer meios de verificação (explicação e evidência)",null,null,null,""]
[null,null,null,null,null,{"$f":"IF(E402=1,TRUE,FALSE)","v":false},""]
[null,null,null,null,null,{"$f":"IF(E402=2,TRUE,FALSE)","v":false},""]
[null,null,null,null,null,{"$f":"IF(E402=3,TRUE,FALSE)","v":false},""]
[null,null,null,null,null,{"$f":"IF(E402=4,TRUE,FALSE)","v":false},""]
[null,null,null,null,null,{"$f":"IF(E402=5,TRUE,FALSE)","v":false},""]
[null,null,null,null,null,{"$f":"IF(E402=6,TRUE,FALSE)","v":false},""]
[null,"Ações para alcançar a máxima resiliência","Instituição responsável","Prazo",null,null,""]
[null,null,null,null,null,null,""]
[null,null,null,null,null,null,""]
[null,"8.10 - Operações Administrativas",null,null,null,null,"8.10"]
[null,null,null,null,null,null,""]
[null,"8.10.1 -Garantia de continuidade de todas as  funções de administração\n",null,null,null,null,"8.10.1"]
[null,"Pergunta","Comentários",null,null,null,""]
[null,null,null,null,null,null,""]
[null,"Resposta","Fornecer meios de verificação (explicação e evidência)",null,null,null,""]
[null,null,null,null,null,{"$f":"IF(E417=1,TRUE,FALSE)","v":false},""]
[null,null,null,null,null,{"$f":"IF(E417=2,TRUE,FALSE)","v":false},""]
[null,null,null,null,null,{"$f":"IF(E417=3,TRUE,FALSE)","v":false},""]
[null,null,null,null,null,{"$f":"IF(E417=4,TRUE,FALSE)","v":false},""]
[null,null,null,null,null,{"$f":"IF(E417=5,TRUE,FALSE)","v":false},""]
[null,null,null,null,null,{"$f":"IF(E417=6,TRUE,FALSE)","v":false},""]
[null,"Ações para alcançar a máxima resiliência","Instituição responsável","Prazo",null,null,""]
[null,null,null,null,null,null,""]
[null,null,null,null,null,null,""]
[null,"8.11 - Dados e sistemas informáticos",null,null,null,null,"8.11"]
[null,null,null,null,null,null,""]
[null,"8.11.1 - Garantia da continuidade dos sistemas informáticos edados críticos para continuidade do governo                                      \n",null,null,null,null,"8.11.1"]
[null,"Pergunta","Comentários",null,null,null,""]
[null,null,null,null,null,null,""]
[null,"Resposta","Fornecer meios de verificação (explicação e evidência)",null,null,null,""]
[null,null,null,null,null,{"$f":"IF(E432=1,TRUE,FALSE)","v":false},""]
[null,null,null,null,null,{"$f":"IF(E432=2,TRUE,FALSE)","v":false},""]
[null,null,null,null,null,{"$f":"IF(E432=3,TRUE,FALSE)","v":false},""]
[null,null,null,null,null,{"$f":"IF(E432=4,TRUE,FALSE)","v":false},""]
[null,null,null,null,null,{"$f":"IF(E432=5,TRUE,FALSE)","v":false},""]
[null,null,null,null,null,{"$f":"IF(E432=6,TRUE,FALSE)","v":false},""]
[null,"Ações para alcançar a máxima resiliência","Instituição responsável","Prazo",null,null,""]
[null,null,null,null,null,null,""]
[null,null,null,null,null,null,""]
[null,"8.11.2 - Garantia da continuidade dos sistemas informáticos edados críticos para qualquer uma das infraestruturas acima\n",null,null,null,null,"8.11.2"]
[null,"Pergunta","Comentários",null,null,null,""]
[null,null,null,null,null,null,""]
[null,"Resposta","Fornecer meios de verificação (explicação e evidência)",null,null,null,""]
[null,null,null,null,null,{"$f":"IF(E445=1,TRUE,FALSE)","v":false},""]
[null,null,null,null,null,{"$f":"IF(E445=2,TRUE,FALSE)","v":false},""]
[null,null,null,null,null,{"$f":"IF(E445=3,TRUE,FALSE)","v":false},""]
[null,null,null,null,null,{"$f":"IF(E445=4,TRUE,FALSE)","v":false},""]
[null,null,null,null,null,{"$f":"IF(E445=5,TRUE,FALSE)","v":false},""]
[null,null,null,null,null,{"$f":"IF(E445=6,TRUE,FALSE)","v":false},""]
[null,"Ações para alcançar a máxima resiliência","Instituição responsável","Prazo",null,null,""]
[null,null,null,null,null,null,""]

{"sheet":"E09","index":11,"n_rows":236,"n_cols":7,"rows_kept":236,"cut":false,"hidden":false,"merged":[[19,2,19,3],[20,2,20,3],[4,1,4,3],[5,2,5,3],[6,2,6,3],[7,2,7,3],[17,1,17,3],[18,2,18,3],[8,2,13,3],[63,2,63,3],[32,1,32,3],[33,2,33,3],[34,2,34,3],[35,2,35,3],[47,1,47,3],[48,2,48,3],[49,2,49,3],[50,2,50,3],[60,1,60,3],[61,2,61,3],[62,2,62,3],[36,2,41,3],[91,2,91,3],[103,1,103,3],[104,2,104,3],[105,2,105,3],[79,2,84,3],[77,2,77,3],[78,2,78,3],[88,1,88,3],[89,2,89,3],[90,2,90,3],[158,2,158,3],[170,1,170,3],[171,2,171,3],[172,2,172,3],[173,2,173,3],[228,2,233,3],[215,2,220,3],[200,2,205,3],[187,2,192,3],[174,2,179,3],[213,2,213,3],[214,2,214,3],[224,1,224,3],[225,2,225,3],[226,2,226,3],[227,2,227,3],[196,1,196,3],[197,2,197,3],[199,2,199,3],[186,2,186,3],[183,1,183,3],[198,2,198,3],[211,1,211,3],[212,2,212,3],[64,2,69,3],[51,2,56,3],[184,2,184,3],[185,2,185,3],[159,2,164,3],[131,2,131,3],[132,2,132,3],[142,1,142,3],[143,2,143,3],[144,2,144,3],[155,1,155,3],[156,2,156,3],[157,2,157,3],[21,2,26,3],[146,2,151,3],[133,2,138,3],[120,2,125,3],[107,2,112,3],[92,2,97,3],[145,2,145,3],[116,1,116,3],[117,2,117,3],[118,2,118,3],[119,2,119,3],[129,1,129,3],[130,2,130,3],[106,2,106,3],[75,1,75,3],[76,2,76,3]]}
[]
[]
[null,"9.1 - Alerta precoce",null,null,null,null,"9.1"]
[null,null,null,null,null,null,""]
[null,"9.1.1 - Existência e eficácia dos sistemas de alerta precoce",null,null,null,null,"9.1.1"]
[null,"Pergunta","Comentários",null,null,null,""]
[null,null,null,null,null,null,""]
[null,"Resposta","Fornecer meios de verificação (explicação e evidência)",null,null,null,""]
[null,null,null,null,null,{"$f":"IF(E9=1,TRUE,FALSE)","v":false},""]
[null,null,null,null,null,{"$f":"IF(E9=2,TRUE,FALSE)","v":false},""]
[null,null,null,null,null,{"$f":"IF(E9=3,TRUE,FALSE)","v":false},""]
[null,null,null,null,null,{"$f":"IF(E9=4,TRUE,FALSE)","v":false},""]
[null,null,null,null,null,{"$f":"IF(E9=5,TRUE,FALSE)","v":false},""]
[null,null,null,null,null,{"$f":"IF(E9=6,TRUE,FALSE)","v":false},""]
[null,"Ações para alcançar a máxima resiliência","Instituição responsável","Prazo",null,null,""]
[null,null,null,null,null,null,""]
[null,null,null,null,null,null,""]
[null,"9.1.1.1 - Alcance do alerta",null,null,null,null,"9.1.1.1"]
[null,"Pergunta","Comentários",null,null,null,""]
[null,null,null,null,null,null,""]
[null,"Resposta","Fornecer meios de verificação (explicação e evidência)",null,null,null,""]
[null,null,null,null,null,{"$f":"IF(E22=1,TRUE,FALSE)","v":false},""]
[null,null,null,null,null,{"$f":"IF(E22=2,TRUE,FALSE)","v":false},""]
[null,null,null,null,null,{"$f":"IF(E22=3,TRUE,FALSE)","v":false},""]
[null,null,null,null,null,{"$f":"IF(E22=4,TRUE,FALSE)","v":false},""]
[null,null,null,null,null,{"$f":"IF(E22=5,TRUE,FALSE)","v":false},""]
[null,null,null,null,null,{"$f":"IF(E22=6,TRUE,FALSE)","v":false},""]
[null,"Ações para alcançar a máxima resiliência","Instituição responsável","Prazo",null,null,""]
[null,null,null,null,null,null,""]
[null,null,null,null,null,null,""]
[null,"9.2 - Planos de resposta a eventos",null,null,null,null,"9.2"]
[null,null,null,null,null,null,""]
[null,"9.2.1 - Existência de planos da resposta a emergência que integram socorristas profissionais e organizações comunitárias (Para resposta pós-evento - ver Principio 10)\n",null,null,null,null,"9.2.1"]
[null,"Pergunta","Comentários",null,null,null,""]
[null,null,null,null,null,null,""]
[null,"Resposta","Provide means of verification (explanation and evidence)",null,null,null,""]
[null,null,null,null,null,{"$f":"IF(E37=1,TRUE,FALSE)","v":false},""]
[null,null,null,null,null,{"$f":"IF(E37=2,TRUE,FALSE)","v":false},""]
[null,null,null,null,null,{"$f":"IF(E37=3,TRUE,FALSE)","v":false},""]
[null,null,null,null,null,{"$f":"IF(E37=4,TRUE,FALSE)","v":false},""]
[null,null,null,null,null,{"$f":"IF(E37=5,TRUE,FALSE)","v":false},""]
[null,null,null,null,null,{"$f":"IF(E37=6,TRUE,FALSE)","v":false},""]
[null,"Ações para alcançar a máxima resiliência","Instituição responsável","Prazo",null,null,""]
[null,null,null,null,null,null,""]
[null,null,null,null,null,null,""]
[null,"9.3 - Necessidades de pessoal e socorrista",null,null,null,null,"9.3"]
[null,null,null,null,null,null,""]
[null,"9.3.1 - “Capacidade de “intervenção” da polícia também para apoiar as missões dos socorristas\n",null,null,null,null,"9.3.1"]
[null,"Pergunta","Comentários",null,null,null,""]
[null,null,null,null,null,null,""]
[null,"Resposta","Fornecer meios de verificação (explicação e evidência)",null,null,null,""]
[null,null,null,null,null,{"$f":"IF(E52=1,TRUE,FALSE)","v":false},""]
[null,null,null,null,null,{"$f":"IF(E52=2,TRUE,FALSE)","v":false},""]
[null,null,null,null,null,{"$f":"IF(E52=3,TRUE,FALSE)","v":false},""]
[null,null,null,null,null,{"$f":"IF(E52=4,TRUE,FALSE)","v":false},""]
[null,null,null,null,null,{"$f":"IF(E52=5,TRUE,FALSE)","v":false},""]
[null,null,null,null,null,{"$f":"IF(E52=6,TRUE,FALSE)","v":false},""]
[null,"Ações para alcançar a máxima resiliência","Instituição responsável","Prazo",null,null,""]
[null,null,null,null,null,null,""]
[null,null,null,null,null,null,""]
[null,"9.3.2 - Definição da disponibilidade e outras necessidades dos socorristas e outras de pessoal",null,null,null,null,"9.3.2"]
[null,"Pergunta","Comentários",null,null,null,""]
[null,null,null,null,null,null,""]
[null,"Resposta","Fornecer meios de verificação (explicação e evidência)",null,null,null,""]
[null,null,null,null,null,{"$f":"IF(E65=1,TRUE,FALSE)","v":false},""]
[null,null,null,null,null,{"$f":"IF(E65=2,TRUE,FALSE)","v":false},""]
[null,null,null,null,null,{"$f":"IF(E65=3,TRUE,FALSE)","v":false},""]
[null,null,null,null,null,{"$f":"IF(E65=4,TRUE,FALSE)","v":false},""]
[null,null,null,null,null,{"$f":"IF(E65=5,TRUE,FALSE)","v":false},""]
[null,null,null,null,null,{"$f":"IF(E65=6,TRUE,FALSE)","v":false},""]
[null,"Ações para alcançar a máxima resiliência","Instituição responsável","Prazo",null,null,""]
[null,null,null,null,null,null,""]
[null,null,null,null,null,null,""]
[null,"9.4 - Necessidades de assistência e fornecimento de equipamentos",null,null,null,null,"9.4"]
[null,null,null,null,null,null,""]
[null,"9.4.1 - Definição das necessidades de fornecimento dos equipamentos e disponibilidade dos equipamentos",null,null,null,null,"9.4.1"]
[null,"Pergunta","Comentários",null,null,null,""]
[null,null,null,null,null,null,""]
[null,"Response","Provide means of verification (explanation and evidence)",null,null,null,""]
[null,null,null,null,null,{"$f":"IF(E80=1,TRUE,FALSE)","v":false},""]
[null,null,null,null,null,{"$f":"IF(E80=2,TRUE,FALSE)","v":false},""]
[null,null,null,null,null,{"$f":"IF(E80=3,TRUE,FALSE)","v":false},""]
[null,null,null,null,null,{"$f":"IF(E80=4,TRUE,FALSE)","v":false},""]
[null,null,null,null,null,{"$f":"IF(E80=5,TRUE,FALSE)","v":false},""]
[null,null,null,null,null,{"$f":"IF(E80=6,TRUE,FALSE)","v":false},""]
[null,"Ações para alcançar a máxima resiliência","Instituição responsável","Prazo",null,null,""]
[null,null,null,null,null,null,""]
[null,null,null,null,null,null,""]
[null,"9.4.1.1 - Definição das necessidades de fornecimento dos equipamentos e disponibilidade dos equipamentos",null,null,null,null,"9.4.1.1"]
[null,"Pergunta","Comentários",null,null,null,""]
[null,null,null,null,null,null,""]
[null,"Resposta","Fornecer meios de verificação (explicação e evidência)",null,null,null,""]
[null,null,null,null,null,{"$f":"IF(E93=1,TRUE,FALSE)","v":false},""]
[null,null,null,null,null,{"$f":"IF(E93=2,TRUE,FALSE)","v":false},""]
[null,null,null,null,null,{"$f":"IF(E93=3,TRUE,FALSE)","v":false},""]
[null,null,null,null,null,{"$f":"IF(E93=4,TRUE,FALSE)","v":false},""]
[null,null,null,null,null,{"$f":"IF(E93=5,TRUE,FALSE)","v":false},""]
[null,null,null,null,null,{"$f":"IF(E93=6,TRUE,FALSE)","v":false},""]
[null,"Ações para alcançar a máxima resiliência","Instituição responsável","Prazo",null,null,""]
[null,null,null,null,null,null,""]
[null,null,null,null,null,null,""]
[null,"9.5 - Alimentação, abrigo, bens essenciais e abastecimento de combustível",null,null,null,null,"9.5"]
[null,null,null,null,null,null,""]
[null,"9.5.1 - Possível capacidade de continuar a alimentar a população",null,null,null,null,"9.5.1"]
[null,"Pergunta","Comentários",null,null,null,""]
[null,null,null,null,null,null,""]
[null,"Resposta","Fornecer meios de verificação (explicação e evidência)",null,null,null,""]
[null,null,null,null,null,{"$f":"IF(E108=1,TRUE,FALSE)","v":false},""]
[null,null,null,null,null,{"$f":"IF(E108=2,TRUE,FALSE)","v":false},""]
[null,null,null,null,null,{"$f":"IF(E108=3,TRUE,FALSE)","v":false},""]
[null,null,null,null,null,{"$f":"IF(E108=4,TRUE,FALSE)","v":false},""]
[null,null,null,null,null,{"$f":"IF(E108=5,TRUE,FALSE)","v":false},""]
[null,null,null,null,null,{"$f":"IF(E108=6,TRUE,FALSE)","v":false},""]
[null,"Ações para alcançar a máxima resiliência","Instituição responsável","Prazo",null,null,""]
[null,null,null,null,null,null,""]
[null,null,null,null,null,null,""]
[null,"9.5.2 - Possível capacidade de atender às necessidades para abrigos/lugares seguros\n",null,null,null,null,"9.5.2"]
[null,"Pergunta","Comentários",null,null,null,""]
[null,null,null,null,null,null,""]
[null,"Resposta","Fornecer meios de verificação (explicação e evidência)",null,null,null,""]
[null,null,null,null,null,{"$f":"IF(E121=1,TRUE,FALSE)","v":false},""]
[null,null,null,null,null,{"$f":"IF(E121=2,TRUE,FALSE)","v":false},""]
[null,null,null,null,null,{"$f":"IF(E121=3,TRUE,FALSE)","v":false},""]
[null,null,null,null,null,{"$f":"IF(E121=4,TRUE,FALSE)","v":false},""]
[null,null,null,null,null,{"$f":"IF(E121=5,TRUE,FALSE)","v":false},""]
[null,null,null,null,null,{"$f":"IF(E121=6,TRUE,FALSE)","v":false},""]
[null,"Ações para alcançar a máxima resiliência","Instituição responsável","Prazo",null,null,""]
[null,null,null,null,null,null,""]
[null,null,null,null,null,null,""]
[null,"9.5.2.1 - Possível capacidade de atender às necessidades para abrigos/lugares seguros\n",null,null,null,null,"9.5.2.1"]
[null,"Pergunta","Comentários",null,null,null,""]
[null,null,null,null,null,null,""]
[null,"Resposta","Fornecer meios de verificação (explicação e evidência)",null,null,null,""]
[null,null,null,null,null,{"$f":"IF(E134=1,TRUE,FALSE)","v":false},""]
[null,null,null,null,null,{"$f":"IF(E134=2,TRUE,FALSE)","v":false},""]
[null,null,null,null,null,{"$f":"IF(E134=3,TRUE,FALSE)","v":false},""]
[null,null,null,null,null,{"$f":"IF(E134=4,TRUE,FALSE)","v":false},""]
[null,null,null,null,null,{"$f":"IF(E134=5,TRUE,FALSE)","v":false},""]
[null,null,null,null,null,{"$f":"IF(E134=6,TRUE,FALSE)","v":false},""]
[null,"Ações para alcançar a máxima resiliência","Instituição responsável","Prazo",null,null,""]
[null,null,null,null,null,null,""]
[null,null,null,null,null,null,""]
[null,"9.5.3 - Capacidade para atender possíveis necessidades de bens essenciais",null,null,null,null,"9.5.3"]
[null,"Pergunta","Comentários",null,null,null,""]
[null,null,null,null,null,null,""]
[null,"Resposta","Fornecer meios de verificação (explicação e evidência)",null,null,null,""]
[null,null,null,null,null,{"$f":"IF(E147=1,TRUE,FALSE)","v":false},""]
[null,null,null,null,null,{"$f":"IF(E147=2,TRUE,FALSE)","v":false},""]
[null,null,null,null,null,{"$f":"IF(E147=3,TRUE,FALSE)","v":false},""]
[null,null,null,null,null,{"$f":"IF(E147=4,TRUE,FALSE)","v":false},""]
[null,null,null,null,null,{"$f":"IF(E147=5,TRUE,FALSE)","v":false},""]
[null,null,null,null,null,{"$f":"IF(E147=6,TRUE,FALSE)","v":false},""]
[null,"Ações para alcançar a máxima resiliência","Instituição responsável","Prazo",null,null,""]
[null,null,null,null,null,null,""]
[null,null,null,null,null,null,""]
[null,"9.5.4 - Provavelmente a disponibilidade de combustível",null,null,null,null,"9.5.4"]
[null,"Pergunta","Comentários",null,null,null,""]
[null,null,null,null,null,null,""]
[null,"Resposta","Fornecer meios de verificação (explicação e evidência)",null,null,null,""]
[null,null,null,null,null,{"$f":"IF(E160=1,TRUE,FALSE)","v":false},""]
[null,null,null,null,null,{"$f":"IF(E160=2,TRUE,FALSE)","v":false},""]
[null,null,null,null,null,{"$f":"IF(E160=3,TRUE,FALSE)","v":false},""]
[null,null,null,null,null,{"$f":"IF(E160=4,TRUE,FALSE)","v":false},""]
[null,null,null,null,null,{"$f":"IF(E160=5,TRUE,FALSE)","v":false},""]
[null,null,null,null,null,{"$f":"IF(E160=6,TRUE,FALSE)","v":false},""]
[null,"Ações para alcançar a máxima resiliência","Instituição responsável","Prazo",null,null,""]
[null,null,null,null,null,null,""]
[null,null,null,null,null,null,""]
[null,"9.6 - Interoperabilidade e trabalho inter-agência ",null,null,null,null,"9.6"]
[null,null,null,null,null,null,""]
[null,"9.6.1 - Interoperabilidade com as cidades/estados vizinhos e outros níveis de procedimentos e sistemas críticos do governo",null,null,null,null,"9.6.1"]
[null,"Pergunta","Comentários",null,null,null,""]
[null,null,null,null,null,null,""]
[null,"Resposta","Fornecer meios de verificação (explicação e evidência)",null,null,null,""]
[null,null,null,null,null,{"$f":"IF(E175=1,TRUE,FALSE)","v":false},""]
[null,null,null,null,null,{"$f":"IF(E175=2,TRUE,FALSE)","v":false},""]
[null,null,null,null,null,{"$f":"IF(E175=3,TRUE,FALSE)","v":false},""]
[null,null,null,null,null,{"$f":"IF(E175=4,TRUE,FALSE)","v":false},""]
[null,null,null,null,null,{"$f":"IF(E175=5,TRUE,FALSE)","v":false},""]
[null,null,null,null,null,{"$f":"IF(E175=6,TRUE,FALSE)","v":false},""]
[null,"Ações para alcançar a máxima resiliência","Instituição responsável","Prazo",null,null,""]
[null,null,null,null,null,null,""]
[null,null,null,null,null,null,""]
[null,"9.6.2 - Centro de Operações de Emergência",null,null,null,null,"9.6.2"]
[null,"Pergunta","Comentários",null,null,null,""]
[null,null,null,null,null,null,""]
[null,"Resposta","Fornecer meios de verificação (explicação e evidência)",null,null,null,""]
[null,null,null,null,null,{"$f":"IF(E188=1,TRUE,FALSE)","v":false},""]
[null,null,null,null,null,{"$f":"IF(E188=2,TRUE,FALSE)","v":false},""]
[null,null,null,null,null,{"$f":"IF(E188=3,TRUE,FALSE)","v":false},""]
[null,null,null,null,null,{"$f":"IF(E188=4,TRUE,FALSE)","v":false},""]
[null,null,null,null,null,{"$f":"IF(E188=5,TRUE,FALSE)","v":false},""]
[null,null,null,null,null,{"$f":"IF(E188=6,TRUE,FALSE)","v":false},""]
[null,"Ações para alcançar a máxima resiliência","Instituição responsável","Prazo",null,null,""]
[null,null,null,null,null,null,""]
[null,null,null,null,null,null,""]
[null,"9.6.3 - Coordenação da recuperação pós-evento",null,null,null,null,"9.6.3"]
[null,"Pergunta","Comentários",null,null,null,""]
[null,null,null,null,null,null,""]
[null,"Resposta","Fornecer meios de verificação (explicação e evidência)",null,null,null,""]
[null,null,null,null,null,{"$f":"IF(E201=1,TRUE,FALSE)","v":false},""]
[null,null,null,null,null,{"$f":"IF(E201=2,TRUE,FALSE)","v":false},""]
[null,null,null,null,null,{"$f":"IF(E201=3,TRUE,FALSE)","v":false},""]
[null,null,null,null,null,{"$f":"IF(E201=4,TRUE,FALSE)","v":false},""]
[null,null,null,null,null,{"$f":"IF(E201=5,TRUE,FALSE)","v":false},""]
[null,null,null,null,null,{"$f":"IF(E201=6,TRUE,FALSE)","v":false},""]
[null,"Ações para alcançar a máxima resiliência","Instituição responsável","Prazo",null,null,""]
[null,null,null,null,null,null,""]
[null,null,null,null,null,null,""]
[null,"9.7 - Simulacros/Exercicios",null,null,null,null,"9.7"]
[null,null,null,null,null,null,""]
[null,"9.7.1 - Práticas e ensaios - envolvendo tanto o público e os profissionais",null,null,null,null,"9.7.1"]
[null,"Pergunta","Comentários",null,null,null,""]
[null,null,null,null,null,null,""]
[null,"Resposta","Fornecer meios de verificação (explicação e evidência)",null,null,null,""]
[null,null,null,null,null,{"$f":"IF(E216=1,TRUE,FALSE)","v":false},""]
[null,null,null,null,null,{"$f":"IF(E216=2,TRUE,FALSE)","v":false},""]
[null,null,null,null,null,{"$f":"IF(E216=3,TRUE,FALSE)","v":false},""]
[null,null,null,null,null,{"$f":"IF(E216=4,TRUE,FALSE)","v":false},""]
[null,null,null,null,null,{"$f":"IF(E216=5,TRUE,FALSE)","v":false},""]
[null,null,null,null,null,{"$f":"IF(E216=6,TRUE,FALSE)","v":false},""]
[null,"Ações para alcançar a máxima resiliência","Instituição responsável","Prazo",null,null,""]
[null,null,null,null,null,null,""]
[null,null,null,null,null,null,""]
[null,"9.7.2 - Eficácia de exercícios e formação\n",null,null,null,null,"9.7.2"]
[null,"Pergunta","Comentários",null,null,null,""]
[null,null,null,null,null,null,""]
[null,"Resposta","Fornecer meios de verificação (explicação e evidência)",null,null,null,""]
[null,null,null,null,null,{"$f":"IF(E229=1,TRUE,FALSE)","v":false},""]
[null,null,null,null,null,{"$f":"IF(E229=2,TRUE,FALSE)","v":false},""]
[null,null,null,null,null,{"$f":"IF(E229=3,TRUE,FALSE)","v":false},""]
[null,null,null,null,null,{"$f":"IF(E229=4,TRUE,FALSE)","v":false},""]
[null,null,null,null,null,{"$f":"IF(E229=5,TRUE,FALSE)","v":false},""]
[null,null,null,null,null,{"$f":"IF(E229=6,TRUE,FALSE)","v":false},""]
[null,"Ações para alcançar a máxima resiliência","Instituição responsável","Prazo",null,null,""]
[null,null,null,null,null,null,""]

{"sheet":"E10","index":12,"n_rows":56,"n_cols":7,"rows_kept":56,"cut":false,"hidden":false,"merged":[[49,2,54,3],[34,2,39,3],[21,2,26,3],[8,2,13,3],[45,1,45,3],[46,2,46,3],[47,2,47,3],[48,2,48,3],[19,2,19,3],[20,2,20,3],[30,1,30,3],[31,2,31,3],[32,2,32,3],[33,2,33,3],[18,2,18,3],[4,1,4,3],[5,2,5,3],[6,2,6,3],[7,2,7,3],[17,1,17,3]]}
[]
[]
[null,"10.1 - Planeamento do pré-evento para recuperação pós-evento",null,null,null,null,"10.1"]
[]
[null,"10.1.1 - Planeamento para recuperação pós-evento e reinicialização económica",null,null,null,null,"10.1.1"]
[null,"Pergunta","Comentários"]
[]
[null,"Resposta","Provide means of verification (explanation and evidence)"]
[null,null,null,null,null,{"$f":"IF(E9=1,TRUE,FALSE)","v":false}]
[null,null,null,null,null,{"$f":"IF(E9=2,TRUE,FALSE)","v":false}]
[null,null,null,null,null,{"$f":"IF(E9=3,TRUE,FALSE)","v":false}]
[null,null,null,null,null,{"$f":"IF(E9=4,TRUE,FALSE)","v":false}]
[null,null,null,null,null,{"$f":"IF(E9=5,TRUE,FALSE)","v":false}]
[null,null,null,null,null,{"$f":"IF(E9=6,TRUE,FALSE)","v":false}]
[null,"Ações para alcançar a máxima resiliência","Responsible institution","Prazo"]
[]
[]
[null,"10.1.2 - Até que ponto houve consulta dos parceiros em torno dos planos da \"reinicialização e recuperação dos eventos\"",null,null,null,null,"10.1.2"]
[null,"Pergunta","Comentários"]
[]
[null,"Resposta","Fornecer meios de verificação (explicação e evidência)"]
[null,null,null,null,null,{"$f":"IF(E22=1,TRUE,FALSE)","v":false}]
[null,null,null,null,null,{"$f":"IF(E22=2,TRUE,FALSE)","v":false}]
[null,null,null,null,null,{"$f":"IF(E22=3,TRUE,FALSE)","v":false}]
[null,null,null,null,null,{"$f":"IF(E22=4,TRUE,FALSE)","v":false}]
[null,null,null,null,null,{"$f":"IF(E22=5,TRUE,FALSE)","v":false}]
[null,null,null,null,null,{"$f":"IF(E22=6,TRUE,FALSE)","v":false}]
[null,"Ações para alcançar a máxima resiliência","Instituição responsável","Prazo"]
[]
[]
[null,"10.1.3 - Acordos financeiros paralelos para processar ajuda recebida e desembolsar os fundos",null,null,null,null,"10.1.3"]
[null,"Pergunta","Comentários"]
[]
[null,"Resposta","Fornecer meios de verificação (explicação e evidência)"]
[null,null,null,null,null,{"$f":"IF(E35=1,TRUE,FALSE)","v":false}]
[null,null,null,null,null,{"$f":"IF(E35=2,TRUE,FALSE)","v":false}]
[null,null,null,null,null,{"$f":"IF(E35=3,TRUE,FALSE)","v":false}]
[null,null,null,null,null,{"$f":"IF(E35=4,TRUE,FALSE)","v":false}]
[null,null,null,null,null,{"$f":"IF(E35=5,TRUE,FALSE)","v":false}]
[null,null,null,null,null,{"$f":"IF(E35=6,TRUE,FALSE)","v":false}]
[null,"Ações para alcançar a máxima resiliência","Instituição responsável","Prazo"]
[]
[]
[null,"10.2 - Lições aprendidas / ciclos de aprendizagem",null,null,null,null,"10.2"]
[]
[null,"10.2.1 - Ciclos de aprendizagem",null,null,null,null,"10.2.1"]
[null,"Pergunta","Comentários"]
[]
[null,"Resposta","Fornecer meios de verificação (explicação e evidência)"]
[null,null,null,null,null,{"$f":"IF(E50=1,TRUE,FALSE)","v":false}]
[null,null,null,null,null,{"$f":"IF(E50=2,TRUE,FALSE)","v":false}]
[null,null,null,null,null,{"$f":"IF(E50=3,TRUE,FALSE)","v":false}]
[null,null,null,null,null,{"$f":"IF(E50=4,TRUE,FALSE)","v":false}]
[null,null,null,null,null,{"$f":"IF(E50=5,TRUE,FALSE)","v":false}]
[null,null,null,null,null,{"$f":"IF(E50=6,TRUE,FALSE)","v":false}]
[null,"Ações para alcançar a máxima resiliência","Instituição responsável","Prazo"]

{"sheet":"About","index":13,"n_rows":0,"n_cols":0,"rows_kept":0,"cut":false,"hidden":false,"merged":[]}